{"text_format":"1","workbook":"xlsx","n_sheets":3,"sheets":["Anrechnung erbrachter Leistung","Studiengänge","Begründung"],"not_rendered":{"charts":0,"images":2,"macros":1,"external_links":0,"defined_names":4,"comments":0,"pivot_tables":0},"unopened":[],"bounds":{"document_bytes":16777216,"sheet_cells":100000,"rows_first":2000,"rows_last":500,"rows_between":2000,"halvings":0,"cell_chars":16384,"cell_head_chars":4096},"cells_cut":0,"cells_raw":0,"read":"whole","date_system":"1900"}

{"sheet":"Anrechnung erbrachter Leistung","index":0,"n_rows":47,"n_cols":18,"rows_kept":47,"cut":false,"hidden":false,"merged":[[16,5,16,7],[5,1,6,6],[39,1,41,15],[46,1,49,15],[17,11,17,13],[16,11,16,15],[5,9,6,12],[7,9,8,12],[9,9,10,12],[5,13,6,15],[7,13,8,15],[9,13,10,15],[16,2,17,2],[1,4,4,7],[8,1,8,4],[1,9,2,12],[3,9,4,12],[1,13,2,15],[3,13,4,15]]}
[]
[null,null,null,null,"                             FH Münster\n                             Fachbereich Maschinenbau\n                             Prüfugsamt\n                             Stegerwaldst. 39\n                             48565 Steinfurt",null,null,null,null,"Name, Vorname:"]
[]
[null,null,null,null,null,null,null,null,null,"Martrikelnummer:"]
[]
[null,"Anrechnung von erbrachten Studienleistungen im Studiengang",null,null,null,null,null,null,null,"Straße:"]
[]
[null,null,null,null,null,null,null,null,null,"PLZ/Ort:"]
[]
[null,"Hiermit bitte ich um Anerkennung der nachfolgend aufgelisteten Leistungen.\t",null,null,null,null,null,null,null,"E-Mail:"]
[]
[]
[null,"Datum",null,"Unterschrift"]
[]
[null,"Vorlesung [V], Übung [Ü], Praktikum[P], Modulprüfung [MP], Hausarbeit [HA], Kombiprüfung [KP]"]
[]
[null,"Prüfungsnr.","Modul des \nBachelorstudiengangs\n(zu erbringende Leistung)","CP","Anerkennung wird beantragt durch erbrachte Leistung im Modul/Fach:","SWS",null,null,"CP","Art/\nPrfg","Note","Nicht vom Studierenden auszufüllen"]
[null,null,null,null,null,null,null,null,null,null,null,"Leistung kann anerkannt werden",null,null,"Bei\nbenoteten Leistungen","Unterschrift der/des zuständigen Lehrenden"]
[null,null,null,null,null,"V","Ü","P",null,null,null,"ja","nein","teilw.","Note",{"$f":"IFERROR(VLOOKUP(Q19,Studiengänge!$D$5:$F$32,2),\"\")","v":""},null,{"$f":"IFERROR(VLOOKUP(Q19,Studiengänge!$D$5:$F$32,3),\"\")","v":""}]
[null,{"$f":"IFERROR(VLOOKUP($C20,Studiengänge!$D$6:$F$85,2,0),\"\")","v":""},null,{"$f":"IFERROR(VLOOKUP($C20,Studiengänge!$D$6:$F$85,3,0),\"\")","v":""},null,null,null,null,null,null,null,null,null,null,null,{"$f":"IFERROR(VLOOKUP(Q20,Studiengänge!$D$5:$F$32,2),\"\")","v":""},null,{"$f":"IFERROR(VLOOKUP(Q20,Studiengänge!$D$5:$F$32,3),\"\")","v":""}]
[null,{"$f":"IFERROR(VLOOKUP($C21,Studiengänge!$D$6:$F$85,2,0),\"\")","v":""},null,{"$f":"IFERROR(VLOOKUP($C21,Studiengänge!$D$6:$F$85,3,0),\"\")","v":""},null,null,null,null,null,null,null,null,null,null,null,{"$f":"IFERROR(VLOOKUP(Q21,Studiengänge!$D$5:$F$32,2),\"\")","v":""},null,{"$f":"IFERROR(VLOOKUP(Q21,Studiengänge!$D$5:$F$32,3),\"\")","v":""}]
[null,{"$f":"IFERROR(VLOOKUP($C22,Studiengänge!$D$6:$F$85,2,0),\"\")","v":""},null,{"$f":"IFERROR(VLOOKUP($C22,Studiengänge!$D$6:$F$85,3,0),\"\")","v":""},null,null,null,null,null,null,null,null,null,null,null,{"$f":"IFERROR(VLOOKUP(Q22,Studiengänge!$D$5:$F$32,2),\"\")","v":""},null,{"$f":"IFERROR(VLOOKUP(Q22,Studiengänge!$D$5:$F$32,3),\"\")","v":""}]
[null,{"$f":"IFERROR(VLOOKUP($C23,Studiengänge!$D$6:$F$85,2,0),\"\")","v":""},null,{"$f":"IFERROR(VLOOKUP($C23,Studiengänge!$D$6:$F$85,3,0),\"\")","v":""},null,null,null,null,null,null,null,null,null,null,null,{"$f":"IFERROR(VLOOKUP(Q23,Studiengänge!$D$5:$F$32,2),\"\")","v":""},null,{"$f":"IFERROR(VLOOKUP(Q23,Studiengänge!$D$5:$F$32,3),\"\")","v":""}]
[null,{"$f":"IFERROR(VLOOKUP($C24,Studiengänge!$D$6:$F$85,2,0),\"\")","v":""},null,{"$f":"IFERROR(VLOOKUP($C24,Studiengänge!$D$6:$F$85,3,0),\"\")","v":""},null,null,null,null,null,null,null,null,null,null,null,{"$f":"IFERROR(VLOOKUP(Q24,Studiengänge!$D$5:$F$32,2),\"\")","v":""},null,{"$f":"IFERROR(VLOOKUP(Q24,Studiengänge!$D$5:$F$32,3),\"\")","v":""}]
[null,{"$f":"IFERROR(VLOOKUP($C25,Studiengänge!$D$6:$F$85,2,0),\"\")","v":""},null,{"$f":"IFERROR(VLOOKUP($C25,Studiengänge!$D$6:$F$85,3,0),\"\")","v":""},null,null,null,null,null,null,null,null,null,null,null,{"$f":"IFERROR(VLOOKUP(Q25,Studiengänge!$D$5:$F$32,2),\"\")","v":""},null,{"$f":"IFERROR(VLOOKUP(Q25,Studiengänge!$D$5:$F$32,3),\"\")","v":""}]
[null,{"$f":"IFERROR(VLOOKUP($C26,Studiengänge!$D$6:$F$85,2,0),\"\")","v":""},null,{"$f":"IFERROR(VLOOKUP($C26,Studiengänge!$D$6:$F$85,3,0),\"\")","v":""},null,null,null,null,null,null,null,null,null,null,null,{"$f":"IFERROR(VLOOKUP(Q26,Studiengänge!$D$5:$F$32,2),\"\")","v":""},null,{"$f":"IFERROR(VLOOKUP(Q26,Studiengänge!$D$5:$F$32,3),\"\")","v":""}]
[null,{"$f":"IFERROR(VLOOKUP($C27,Studiengänge!$D$6:$F$85,2,0),\"\")","v":""},null,{"$f":"IFERROR(VLOOKUP($C27,Studiengänge!$D$6:$F$85,3,0),\"\")","v":""},null,null,null,null,null,null,null,null,null,null,null,{"$f":"IFERROR(VLOOKUP(Q27,Studiengänge!$D$5:$F$32,2),\"\")","v":""},null,{"$f":"IFERROR(VLOOKUP(Q27,Studiengänge!$D$5:$F$32,3),\"\")","v":""}]
[null,{"$f":"IFERROR(VLOOKUP($C28,Studiengänge!$D$6:$F$85,2,0),\"\")","v":""},null,{"$f":"IFERROR(VLOOKUP($C28,Studiengänge!$D$6:$F$85,3,0),\"\")","v":""},null,null,null,null,null,null,null,null,null,null,null,{"$f":"IFERROR(VLOOKUP(Q28,Studiengänge!$D$5:$F$32,2),\"\")","v":""},null,{"$f":"IFERROR(VLOOKUP(Q28,Studiengänge!$D$5:$F$32,3),\"\")","v":""}]
[null,{"$f":"IFERROR(VLOOKUP($C29,Studiengänge!$D$6:$F$85,2,0),\"\")","v":""},null,{"$f":"IFERROR(VLOOKUP($C29,Studiengänge!$D$6:$F$85,3,0),\"\")","v":""}]
[null,{"$f":"IFERROR(VLOOKUP($C30,Studiengänge!$D$6:$F$85,2,0),\"\")","v":""},null,{"$f":"IFERROR(VLOOKUP($C30,Studiengänge!$D$6:$F$85,3,0),\"\")","v":""}]
[null,{"$f":"IFERROR(VLOOKUP($C31,Studiengänge!$D$6:$F$85,2,0),\"\")","v":""},null,{"$f":"IFERROR(VLOOKUP($C31,Studiengänge!$D$6:$F$85,3,0),\"\")","v":""}]
[null,{"$f":"IFERROR(VLOOKUP($C32,Studiengänge!$D$6:$F$85,2,0),\"\")","v":""},null,{"$f":"IFERROR(VLOOKUP($C32,Studiengänge!$D$6:$F$85,3,0),\"\")","v":""}]
[null,{"$f":"IFERROR(VLOOKUP($C33,Studiengänge!$D$6:$F$85,2,0),\"\")","v":""},null,{"$f":"IFERROR(VLOOKUP($C33,Studiengänge!$D$6:$F$85,3,0),\"\")","v":""}]
[null,{"$f":"IFERROR(VLOOKUP($C34,Studiengänge!$D$6:$F$85,2,0),\"\")","v":""},null,{"$f":"IFERROR(VLOOKUP($C34,Studiengänge!$D$6:$F$85,3,0),\"\")","v":""}]
[null,{"$f":"IFERROR(VLOOKUP($C35,Studiengänge!$D$6:$F$85,2,0),\"\")","v":""},null,{"$f":"IFERROR(VLOOKUP($C35,Studiengänge!$D$6:$F$85,3,0),\"\")","v":""}]
[null,{"$f":"IFERROR(VLOOKUP($C36,Studiengänge!$D$6:$F$85,2,0),\"\")","v":""},null,{"$f":"IFERROR(VLOOKUP($C36,Studiengänge!$D$6:$F$85,3,0),\"\")","v":""}]
[null,{"$f":"IFERROR(VLOOKUP($C37,Studiengänge!$D$6:$F$85,2,0),\"\")","v":""},null,{"$f":"IFERROR(VLOOKUP($C37,Studiengänge!$D$6:$F$85,3,0),\"\")","v":""}]
[null,{"$f":"IFERROR(VLOOKUP($C38,Studiengänge!$D$6:$F$85,2,0),\"\")","v":""},null,{"$f":"IFERROR(VLOOKUP($C38,Studiengänge!$D$6:$F$85,3,0),\"\")","v":""}]
[null,{"$f":"IFERROR(VLOOKUP($C39,Studiengänge!$D$6:$F$85,2,0),\"\")","v":""},null,{"$f":"IFERROR(VLOOKUP($C39,Studiengänge!$D$6:$F$85,3,0),\"\")","v":""}]
[null,"Die Anerkennung erfolgt entsprechend obiger Aufstellung\n                                                                                                                                           *) Begründung siehe nächste Seite\n                                                                                                     "]
[]
[]
[]
[]
[null,"Datum",null,"Prüfungsausschussvorsitzender-/beauftragter"]
[]
[null,"Fügen Sie als Anlage Ihre beglaubigte Kopie oder die original Notenübersicht mit der Ergänzung der Noten in Ziffern mit einer Nachkommastelle und Angabe der ECTS Punkte sowie sämtlichen bestandenen sowie nicht bestandenen Leistungen Ihres bisherigen Studiengangs bei. \nOhne diese Unterlagen ist keine Bearbeitung möglich. Dieses Formular geben Sie im Prüfungsamt des FB Maschinenbau (R. N018) ab oder schicken es per Mail (dekanat-mb@fh-muenster.de) oder per Post (Adresse s. o.) zurück. "]

{"sheet":"Studiengänge","index":1,"n_rows":85,"n_cols":52,"rows_kept":85,"cut":false,"hidden":true,"merged":[[0,1,0,5],[2,17,2,19],[2,25,2,27],[2,21,2,23],[2,9,2,11],[2,13,2,15],[1,3,1,5],[2,37,2,39],[2,41,2,43],[2,45,2,47],[2,49,2,51],[2,29,2,31],[2,33,2,35]]}
[null,"Arbeitslisten"]
[null,null,null,"Auswahl Liste",null,null,null,null,null,"Maschinenbau"]
[null,"Studiengänge",null,null,null,null,null,null,null,"B.Sc. Maschinenbau - 84.113",null,null,null,"B.Sc. Maschinenbauinformatik - 84.213",null,null,null,"B.Sc. Wirtschaftsingenieurwesen Maschinenbau - 84.403",null,null,null,"B.Sc. Maschinenbau - Dual - 84.413",null,null,null,"B.Ed. Maschinebautechnik - Lehramt - B8-521",null,null,null,"B.Sc. International Engineering - Mechanical Engineering (Out) - 84.MEC.OUT",null,null,null,"B.Sc. International Engineering - Mechanical Engineering (Inc.) - 84.MEC",null,null,null,"M.Sc. Maschinenbau (Vollzeit) - 90.113",null,null,null,"M.Sc. Maschinenbau in Teilzeit - 90.314",null,null,null,"M.Ed. Maschinenbautechnik - Lehramt  - N1-521",null,null,null,"M.Ed. Maschinenbautechnik - Lehramt (berufsbegleitend) - N1-522"]
[null,null,"Nr.","Modul","Prüfungsnr.:","CP",null,null,"Nr.","Prüfungsnr.:","Modul","CP",null,"Prüfungsnr.:","Modul","CP",null,"Prüfungsnr.:","Modul","CP",null,"Prüfungsnr.:","Modul","CP",null,"Prüfungsnr.:","Modul","CP",null,"Prüfungsnr.:","Modul","CP",null,"Prüfungsnr.:","Modul","CP",null,"Prüfungsnr.:","Modul","CP",null,"Prüfungsnr.:","Modul","CP",null,"Prüfungsnr.:","Modul","CP",null,"Prüfungsnr.:","Modul","CP"]
[null,null,0,null,null,null,null,null,0]
[null,{"$f":"IF(ISBLANK(INDEX($J$3:$XFD$3,1+C6*4-4)),\"\",INDEX($J$3:$XFD$3,1+C6*4-4))","v":"B.Sc. Maschinenbau - 84.113"},1,{"$f":"IFERROR(IF(INDEX($J$6:$XFD$85,C6,MATCH('Anrechnung erbrachter Leistung'!$B$9,$J$3:$XFD$3,)+1)=0,\"\",IFERROR(INDEX($J$6:$XFD$85,C6,MATCH('Anrechnung erbrachter Leistung'!$B$9,$J$3:$XFD$3,)+1),\"\")),\"\")","v":""},{"$f":"IFERROR(IF(INDEX($J$6:$XFD$85,C6,MATCH('Anrechnung erbrachter Leistung'!$B$9,$J$3:$XFD$3,)+0)=0,\"\",IFERROR(INDEX($J$6:$XFD$85,C6,MATCH('Anrechnung erbrachter Leistung'!$B$9,$J$3:$XFD$3,)+0),\"\")),\"\")","v":""},{"$f":"IFERROR(IF(ISBLANK(INDEX($J$6:$XFD$85,C6,MATCH('Anrechnung erbrachter Leistung'!$B$9,$J$3:$XFD$3,)+2)),\"\",IFERROR(INDEX($J$6:$XFD$85,C6,MATCH('Anrechnung erbrachter Leistung'!$B$9,$J$3:$XFD$3,)+2),\"\")),\"\")","v":""},null,null,1,"MB.1.0111.0.M","Angewandte Informatik",5,null,"ETI.1.0009.0.M","Algorithmen und Datenstrukturen",8,null,"ITB.1.0029.0.M","Allgemeine Betriebswirtschaftslehre",6,null,"MB.1.0111.0.M","Angewandte Informatik",5,null,"MB.1.0019.0.M","CIM",6,null,"MB.1.0025.0.M","Dynamik",5,null,"MB.1.0219.0.M","Module an der Partnerhochschule UPB / USACH",120,null,"MB.2.0005.0.M","Advanced English",6,null,"MB.2.0005.0.M","Advanced English",6,null,"MB.2.0017.0.M","Fügetechnik",5,null,"MB.2.0019.0.M","Getriebetechnik",5]
[null,"B.Sc. Maschinenbauinformatik - 84.213",2,{"$f":"IFERROR(IF(INDEX($J$6:$XFD$85,C7,MATCH('Anrechnung erbrachter Leistung'!$B$9,$J$3:$XFD$3,)+1)=0,\"\",IFERROR(INDEX($J$6:$XFD$85,C7,MATCH('Anrechnung erbrachter Leistung'!$B$9,$J$3:$XFD$3,)+1),\"\")),\"\")","v":""},{"$f":"IFERROR(IF(INDEX($J$6:$XFD$85,C7,MATCH('Anrechnung erbrachter Leistung'!$B$9,$J$3:$XFD$3,)+0)=0,\"\",IFERROR(INDEX($J$6:$XFD$85,C7,MATCH('Anrechnung erbrachter Leistung'!$B$9,$J$3:$XFD$3,)+0),\"\")),\"\")","v":""},{"$f":"IFERROR(IF(ISBLANK(INDEX($J$6:$XFD$85,C7,MATCH('Anrechnung erbrachter Leistung'!$B$9,$J$3:$XFD$3,)+2)),\"\",IFERROR(INDEX($J$6:$XFD$85,C7,MATCH('Anrechnung erbrachter Leistung'!$B$9,$J$3:$XFD$3,)+2),\"\")),\"\")","v":""},null,null,2,"MB.1.0012.0.M","Anlagentechniks Projekt",5,null,"MB.1.0011.0.M","Angewandte Informatik",5,null,"MB.1.0111.0.M","Angewandte Informatik",5,null,"MB.1.0122.0.M","Datenbanksysteme",5,null,"MB.1.0027.0.M","Elektrotechnik",6,null,"MB.1.0027.0.M","Elektrotechnik",5,null,null,null,null,null,"MB.2.0006.0.M","Agrarverfahrenstechnik",6,null,"MB.2.0006.0.M","Agrarverfahrenstechnik",6,null,"MB.2.0……..","Verbrennungskraftmaschinen",5,null,"MB.2.0030.0.M","Integrierte Produktentwicklung",5]
[null,"B.Sc. Wirtschaftsingenieurwesen Maschinenbau - 84.403",3,{"$f":"IFERROR(IF(INDEX($J$6:$XFD$85,C8,MATCH('Anrechnung erbrachter Leistung'!$B$9,$J$3:$XFD$3,)+1)=0,\"\",IFERROR(INDEX($J$6:$XFD$85,C8,MATCH('Anrechnung erbrachter Leistung'!$B$9,$J$3:$XFD$3,)+1),\"\")),\"\")","v":""},{"$f":"IFERROR(IF(INDEX($J$6:$XFD$85,C8,MATCH('Anrechnung erbrachter Leistung'!$B$9,$J$3:$XFD$3,)+0)=0,\"\",IFERROR(INDEX($J$6:$XFD$85,C8,MATCH('Anrechnung erbrachter Leistung'!$B$9,$J$3:$XFD$3,)+0),\"\")),\"\")","v":""},{"$f":"IFERROR(IF(ISBLANK(INDEX($J$6:$XFD$85,C8,MATCH('Anrechnung erbrachter Leistung'!$B$9,$J$3:$XFD$3,)+2)),\"\",IFERROR(INDEX($J$6:$XFD$85,C8,MATCH('Anrechnung erbrachter Leistung'!$B$9,$J$3:$XFD$3,)+2),\"\")),\"\")","v":""},null,null,3,"MB.1.0013.0.M","Apparate- und Anlagenbau",5,null,"MB.1.0195.0.M","Automotive Systems",5,null,"MB.1.0195.0.M","Automotive Systems",5,null,"MB.1.0196.0.M","Digitale Produktion",5,null,"MB.1.0036.0.M","Fertigungsverfahren 1",7,null,"MB.1.0036.0.M","Fertigungsverfahren 1",5,null,null,null,null,null,"MB.2.0007.0.M","Anlagenplanung",6,null,"MB.2.0007.0.M","Anlagenplanung",6,null,"MB.2.0057.0.M","Robotertechnik",5,null,"MB.2.0036.0.M","Konstruieren mit Kunststoffen",5]
[null,"B.Sc. Maschinenbau - Dual - 84.413",4,{"$f":"IFERROR(IF(INDEX($J$6:$XFD$85,C9,MATCH('Anrechnung erbrachter Leistung'!$B$9,$J$3:$XFD$3,)+1)=0,\"\",IFERROR(INDEX($J$6:$XFD$85,C9,MATCH('Anrechnung erbrachter Leistung'!$B$9,$J$3:$XFD$3,)+1),\"\")),\"\")","v":""},{"$f":"IFERROR(IF(INDEX($J$6:$XFD$85,C9,MATCH('Anrechnung erbrachter Leistung'!$B$9,$J$3:$XFD$3,)+0)=0,\"\",IFERROR(INDEX($J$6:$XFD$85,C9,MATCH('Anrechnung erbrachter Leistung'!$B$9,$J$3:$XFD$3,)+0),\"\")),\"\")","v":""},{"$f":"IFERROR(IF(ISBLANK(INDEX($J$6:$XFD$85,C9,MATCH('Anrechnung erbrachter Leistung'!$B$9,$J$3:$XFD$3,)+2)),\"\",IFERROR(INDEX($J$6:$XFD$85,C9,MATCH('Anrechnung erbrachter Leistung'!$B$9,$J$3:$XFD$3,)+2),\"\")),\"\")","v":""},null,null,4,"MB.1.0195.0.M","Automotive Systems",5,null,"ETI.1.0056.0.M","Computergrafik",5,null,"MB.1.0019.0.M","CIM",5,null,"MB.1.0145.0.M","Digitalisierung im Maschinenbau",5,null,"MB.1.0039.0.M","Fertigungsverfahren 2",6,null,"MB.1.0040.0.M","Festigkeitslehre",5,null,null,null,null,null,"MB.2.0008.0.M","Antriebssysteme ",6,null,"MB.2.0008.0.M","Antriebssysteme ",6]
[null,"B.Ed. Maschinebautechnik - Lehramt - B8-521",5,{"$f":"IFERROR(IF(INDEX($J$6:$XFD$85,C10,MATCH('Anrechnung erbrachter Leistung'!$B$9,$J$3:$XFD$3,)+1)=0,\"\",IFERROR(INDEX($J$6:$XFD$85,C10,MATCH('Anrechnung erbrachter Leistung'!$B$9,$J$3:$XFD$3,)+1),\"\")),\"\")","v":""},{"$f":"IFERROR(IF(INDEX($J$6:$XFD$85,C10,MATCH('Anrechnung erbrachter Leistung'!$B$9,$J$3:$XFD$3,)+0)=0,\"\",IFERROR(INDEX($J$6:$XFD$85,C10,MATCH('Anrechnung erbrachter Leistung'!$B$9,$J$3:$XFD$3,)+0),\"\")),\"\")","v":""},{"$f":"IFERROR(IF(ISBLANK(INDEX($J$6:$XFD$85,C10,MATCH('Anrechnung erbrachter Leistung'!$B$9,$J$3:$XFD$3,)+2)),\"\",IFERROR(INDEX($J$6:$XFD$85,C10,MATCH('Anrechnung erbrachter Leistung'!$B$9,$J$3:$XFD$3,)+2),\"\")),\"\")","v":""},null,null,5,"MB.1.0122.0.M","Datenbanksysteme",5,null,"MB.1.0022.0.M","Datenbanksysteme",7,null,"MB.1.0196.0.M","Digitale Produktion",5,null,"MB.1.0024.0.M","Digitaltechnik",5,null,"MB.1.0040.0.M","Festigkeitslehre",5,null,"ITB.1.0027.0.M","Grundlagen der Betriebswirtschaftslehre",5,null,null,null,null,null,"MB.2.0009.0.M","Anwendung Numerischer Software",6,null,"MB.2.0009.0.M","Anwendung Numerischer Software",6]
[null,"B.Sc. International Engineering - Mechanical Engineering (Out) - 84.MEC.OUT",6,{"$f":"IFERROR(IF(INDEX($J$6:$XFD$85,C11,MATCH('Anrechnung erbrachter Leistung'!$B$9,$J$3:$XFD$3,)+1)=0,\"\",IFERROR(INDEX($J$6:$XFD$85,C11,MATCH('Anrechnung erbrachter Leistung'!$B$9,$J$3:$XFD$3,)+1),\"\")),\"\")","v":""},{"$f":"IFERROR(IF(INDEX($J$6:$XFD$85,C11,MATCH('Anrechnung erbrachter Leistung'!$B$9,$J$3:$XFD$3,)+0)=0,\"\",IFERROR(INDEX($J$6:$XFD$85,C11,MATCH('Anrechnung erbrachter Leistung'!$B$9,$J$3:$XFD$3,)+0),\"\")),\"\")","v":""},{"$f":"IFERROR(IF(ISBLANK(INDEX($J$6:$XFD$85,C11,MATCH('Anrechnung erbrachter Leistung'!$B$9,$J$3:$XFD$3,)+2)),\"\",IFERROR(INDEX($J$6:$XFD$85,C11,MATCH('Anrechnung erbrachter Leistung'!$B$9,$J$3:$XFD$3,)+2),\"\")),\"\")","v":""},null,null,6,"MB.1.0196.0.M","Digitale Produktion",5,null,"MB.1.0196.0.M","Digitale Produktion",5,null,"MB.1.0027.0.M","Elektrotechnik",5,null,"MB.1.0025.0.M","Dynamik",5,null,"MB.1.0050.0.M","Grundlagen der Konstruktion",8,null,"MB.1.0050.0.M","Grundlagen der Konstruktion",9,null,null,null,null,null,"MB.2.0010.0.M","Betriebsfestigkeit",6,null,"MB.2.0010.0.M","Betriebsfestigkeit",6]
[null,"B.Sc. International Engineering - Mechanical Engineering (Inc.) - 84.MEC",7,{"$f":"IFERROR(IF(INDEX($J$6:$XFD$85,C12,MATCH('Anrechnung erbrachter Leistung'!$B$9,$J$3:$XFD$3,)+1)=0,\"\",IFERROR(INDEX($J$6:$XFD$85,C12,MATCH('Anrechnung erbrachter Leistung'!$B$9,$J$3:$XFD$3,)+1),\"\")),\"\")","v":""},{"$f":"IFERROR(IF(INDEX($J$6:$XFD$85,C12,MATCH('Anrechnung erbrachter Leistung'!$B$9,$J$3:$XFD$3,)+0)=0,\"\",IFERROR(INDEX($J$6:$XFD$85,C12,MATCH('Anrechnung erbrachter Leistung'!$B$9,$J$3:$XFD$3,)+0),\"\")),\"\")","v":""},{"$f":"IFERROR(IF(ISBLANK(INDEX($J$6:$XFD$85,C12,MATCH('Anrechnung erbrachter Leistung'!$B$9,$J$3:$XFD$3,)+2)),\"\",IFERROR(INDEX($J$6:$XFD$85,C12,MATCH('Anrechnung erbrachter Leistung'!$B$9,$J$3:$XFD$3,)+2),\"\")),\"\")","v":""},null,null,7,"MB.1.0145.0.M","Digitalisierung im Maschinenbau",5,null,"MB.1.0145.0.M","Digitalisierung im Maschinenbau",5,null,"MB.1.0203.0.M","Energie- u. Ressourceneffizienz",5,null,"MB.1.0027.0.M","Elektrotechnik",5,null,"MB.1.0052.0.M","Grundlagen der Programmierung",5,null,"MB.1.0052.0.M","Grundlagen der Programmierung",5,null,null,null,null,null,"MB.2.0012.0.M","Developments in Computer Science",6,null,"MB.2.0012.0.M","Developments in Computer Science",6]
[null,"M.Sc. Maschinenbau (Vollzeit) - 90.113",8,{"$f":"IFERROR(IF(INDEX($J$6:$XFD$85,C13,MATCH('Anrechnung erbrachter Leistung'!$B$9,$J$3:$XFD$3,)+1)=0,\"\",IFERROR(INDEX($J$6:$XFD$85,C13,MATCH('Anrechnung erbrachter Leistung'!$B$9,$J$3:$XFD$3,)+1),\"\")),\"\")","v":""},{"$f":"IFERROR(IF(INDEX($J$6:$XFD$85,C13,MATCH('Anrechnung erbrachter Leistung'!$B$9,$J$3:$XFD$3,)+0)=0,\"\",IFERROR(INDEX($J$6:$XFD$85,C13,MATCH('Anrechnung erbrachter Leistung'!$B$9,$J$3:$XFD$3,)+0),\"\")),\"\")","v":""},{"$f":"IFERROR(IF(ISBLANK(INDEX($J$6:$XFD$85,C13,MATCH('Anrechnung erbrachter Leistung'!$B$9,$J$3:$XFD$3,)+2)),\"\",IFERROR(INDEX($J$6:$XFD$85,C13,MATCH('Anrechnung erbrachter Leistung'!$B$9,$J$3:$XFD$3,)+2),\"\")),\"\")","v":""},null,null,8,"MB.1.0024.0.M","Digitaltechnik",5,null,"MB.1.0024.0.M","Digitaltechnik",5,null,"MB.1.0036.0.M","Fertigungsverfahren 1",5,null,"MB.1.0203.0.M","Energie- u. Ressourceneffizienz",5,null,"MB.1.0057.0.M","Hydraulik",6,null,"MB.1.0056.0.M","Grundzüge der FEM",5,null,null,null,null,null,"MB.2.0013.0.M","Fahrzeugtechnik",6,null,"MB.2.0013.0.M","Fahrzeugtechnik",6]
[null,"M.Sc. Maschinenbau in Teilzeit - 90.314",9,{"$f":"IFERROR(IF(INDEX($J$6:$XFD$85,C14,MATCH('Anrechnung erbrachter Leistung'!$B$9,$J$3:$XFD$3,)+1)=0,\"\",IFERROR(INDEX($J$6:$XFD$85,C14,MATCH('Anrechnung erbrachter Leistung'!$B$9,$J$3:$XFD$3,)+1),\"\")),\"\")","v":""},{"$f":"IFERROR(IF(INDEX($J$6:$XFD$85,C14,MATCH('Anrechnung erbrachter Leistung'!$B$9,$J$3:$XFD$3,)+0)=0,\"\",IFERROR(INDEX($J$6:$XFD$85,C14,MATCH('Anrechnung erbrachter Leistung'!$B$9,$J$3:$XFD$3,)+0),\"\")),\"\")","v":""},{"$f":"IFERROR(IF(ISBLANK(INDEX($J$6:$XFD$85,C14,MATCH('Anrechnung erbrachter Leistung'!$B$9,$J$3:$XFD$3,)+2)),\"\",IFERROR(INDEX($J$6:$XFD$85,C14,MATCH('Anrechnung erbrachter Leistung'!$B$9,$J$3:$XFD$3,)+2),\"\")),\"\")","v":""},null,null,9,"MB.1.0025.0.M","Dynamik",5,null,"MB.1.0027.0.M","Elektrotechnik",5,null,"MB.1.0039.0.M","Fertigungsverfahren 2",5,null,"MB.1.0036.0.M","Fertigungsverfahren 1",5,null,"MB.1.0059.0.M","Innovative Werkstoffe",6,null,"MB.1.0057.0.M","Hydraulik",5,null,null,null,null,null,"MB.2.0014.0.M","Fördertechnik",6,null,"MB.2.0014.0.M","Fördertechnik",6]
[null,"M.Ed. Maschinenbautechnik - Lehramt  - N1-521",10,{"$f":"IFERROR(IF(INDEX($J$6:$XFD$85,C15,MATCH('Anrechnung erbrachter Leistung'!$B$9,$J$3:$XFD$3,)+1)=0,\"\",IFERROR(INDEX($J$6:$XFD$85,C15,MATCH('Anrechnung erbrachter Leistung'!$B$9,$J$3:$XFD$3,)+1),\"\")),\"\")","v":""},{"$f":"IFERROR(IF(INDEX($J$6:$XFD$85,C15,MATCH('Anrechnung erbrachter Leistung'!$B$9,$J$3:$XFD$3,)+0)=0,\"\",IFERROR(INDEX($J$6:$XFD$85,C15,MATCH('Anrechnung erbrachter Leistung'!$B$9,$J$3:$XFD$3,)+0),\"\")),\"\")","v":""},{"$f":"IFERROR(IF(ISBLANK(INDEX($J$6:$XFD$85,C15,MATCH('Anrechnung erbrachter Leistung'!$B$9,$J$3:$XFD$3,)+2)),\"\",IFERROR(INDEX($J$6:$XFD$85,C15,MATCH('Anrechnung erbrachter Leistung'!$B$9,$J$3:$XFD$3,)+2),\"\")),\"\")","v":""},null,null,10,"MB.1.0027.0.M","Elektrotechnik",5,null,"MB.1.0036.0.M","Fertigungsverfahren 1",5,null,"MB.1.0040.0.M","Festigkeitslehre",5,null,"MB.1.0039.0.M","Fertigungsverfahren 2",5,null,"MB.1.0076.0.M","Konstruktion / CAD 1",5,null,"MB.1.0076.0.M","Konstruktion / CAD 1",5,null,null,null,null,null,"MB.2.0016.0.M","Fördertechnisches Seminar",6,null,"MB.2.0016.0.M","Fördertechnisches Seminar",6]
[null,"M.Ed. Maschinenbautechnik - Lehramt (berufsbegleitend) - N1-522",11,{"$f":"IFERROR(IF(INDEX($J$6:$XFD$85,C16,MATCH('Anrechnung erbrachter Leistung'!$B$9,$J$3:$XFD$3,)+1)=0,\"\",IFERROR(INDEX($J$6:$XFD$85,C16,MATCH('Anrechnung erbrachter Leistung'!$B$9,$J$3:$XFD$3,)+1),\"\")),\"\")","v":""},{"$f":"IFERROR(IF(INDEX($J$6:$XFD$85,C16,MATCH('Anrechnung erbrachter Leistung'!$B$9,$J$3:$XFD$3,)+0)=0,\"\",IFERROR(INDEX($J$6:$XFD$85,C16,MATCH('Anrechnung erbrachter Leistung'!$B$9,$J$3:$XFD$3,)+0),\"\")),\"\")","v":""},{"$f":"IFERROR(IF(ISBLANK(INDEX($J$6:$XFD$85,C16,MATCH('Anrechnung erbrachter Leistung'!$B$9,$J$3:$XFD$3,)+2)),\"\",IFERROR(INDEX($J$6:$XFD$85,C16,MATCH('Anrechnung erbrachter Leistung'!$B$9,$J$3:$XFD$3,)+2),\"\")),\"\")","v":""},null,null,11,"MB.1.0203.0.M","Energie- u. Ressourceneffizienz",5,null,"MB.1.0040.0.M","Festigkeitslehre",5,null,"ITB.1.0025.0.M","Finanzierung und Controlling",6,null,"MB.1.0040.0.M","Festigkeitslehre",5,null,"MB.1.0080.0.M","Maschinenelemente",5,null,"MB.1.0077.0.M","Konstruktion / CAD 2",5,null,null,null,null,null,"MB.2.0019.0.M","Getriebetechnik",6,null,"MB.2.0019.0.M","Getriebetechnik",6]
[null,"",12,{"$f":"IFERROR(IF(INDEX($J$6:$XFD$85,C17,MATCH('Anrechnung erbrachter Leistung'!$B$9,$J$3:$XFD$3,)+1)=0,\"\",IFERROR(INDEX($J$6:$XFD$85,C17,MATCH('Anrechnung erbrachter Leistung'!$B$9,$J$3:$XFD$3,)+1),\"\")),\"\")","v":""},{"$f":"IFERROR(IF(INDEX($J$6:$XFD$85,C17,MATCH('Anrechnung erbrachter Leistung'!$B$9,$J$3:$XFD$3,)+0)=0,\"\",IFERROR(INDEX($J$6:$XFD$85,C17,MATCH('Anrechnung erbrachter Leistung'!$B$9,$J$3:$XFD$3,)+0),\"\")),\"\")","v":""},{"$f":"IFERROR(IF(ISBLANK(INDEX($J$6:$XFD$85,C17,MATCH('Anrechnung erbrachter Leistung'!$B$9,$J$3:$XFD$3,)+2)),\"\",IFERROR(INDEX($J$6:$XFD$85,C17,MATCH('Anrechnung erbrachter Leistung'!$B$9,$J$3:$XFD$3,)+2),\"\")),\"\")","v":""},null,null,12,"MB.1.0206.0.M","Fahrzeugentwicklung u. -vernetzung",5,null,"ITB.1.0027.0.M","Grundlagen der Betriebswirtschaftslehre",5,null,"MB.1.0050.0.M","Grundlagen der Konstruktion",9,null,"MB.1.0042.0.M","Fügetechnik",5,null,"MB.1.0082.0.M","Mathematik 1",8,null,"MB.1.0080.0.M","Maschinenelemente",5,null,null,null,null,null,"MB.2.0022.0.M","Höhere FEM",6,null,"MB.2.0022.0.M","Höhere FEM",6]
[null,"",13,{"$f":"IFERROR(IF(INDEX($J$6:$XFD$85,C18,MATCH('Anrechnung erbrachter Leistung'!$B$9,$J$3:$XFD$3,)+1)=0,\"\",IFERROR(INDEX($J$6:$XFD$85,C18,MATCH('Anrechnung erbrachter Leistung'!$B$9,$J$3:$XFD$3,)+1),\"\")),\"\")","v":""},{"$f":"IFERROR(IF(INDEX($J$6:$XFD$85,C18,MATCH('Anrechnung erbrachter Leistung'!$B$9,$J$3:$XFD$3,)+0)=0,\"\",IFERROR(INDEX($J$6:$XFD$85,C18,MATCH('Anrechnung erbrachter Leistung'!$B$9,$J$3:$XFD$3,)+0),\"\")),\"\")","v":""},{"$f":"IFERROR(IF(ISBLANK(INDEX($J$6:$XFD$85,C18,MATCH('Anrechnung erbrachter Leistung'!$B$9,$J$3:$XFD$3,)+2)),\"\",IFERROR(INDEX($J$6:$XFD$85,C18,MATCH('Anrechnung erbrachter Leistung'!$B$9,$J$3:$XFD$3,)+2),\"\")),\"\")","v":""},null,null,13,"MB.1.0036.0.M","Fertigungsverfahren 1",5,null,"MB.1.0050.0.M","Grundlagen der Konstruktion",9,null,"MB.1.0051.0.M","Grundlagen der Landtechnik",5,null,"ITB.1.0027.0.M","Grundlagen der Betriebswirtschaftslehre",5,null,"MB.1.0083.0.M","Mathematik 2",6,null,"MB.1.0082.0.M","Mathematik 1",8,null,null,null,null,null,"MB.2.0024.0.M","Höhere Mathematik ",6,null,"MB.2.0024.0.M","Höhere Mathematik ",6]
[null,"",14,{"$f":"IFERROR(IF(INDEX($J$6:$XFD$85,C19,MATCH('Anrechnung erbrachter Leistung'!$B$9,$J$3:$XFD$3,)+1)=0,\"\",IFERROR(INDEX($J$6:$XFD$85,C19,MATCH('Anrechnung erbrachter Leistung'!$B$9,$J$3:$XFD$3,)+1),\"\")),\"\")","v":""},{"$f":"IFERROR(IF(INDEX($J$6:$XFD$85,C19,MATCH('Anrechnung erbrachter Leistung'!$B$9,$J$3:$XFD$3,)+0)=0,\"\",IFERROR(INDEX($J$6:$XFD$85,C19,MATCH('Anrechnung erbrachter Leistung'!$B$9,$J$3:$XFD$3,)+0),\"\")),\"\")","v":""},{"$f":"IFERROR(IF(ISBLANK(INDEX($J$6:$XFD$85,C19,MATCH('Anrechnung erbrachter Leistung'!$B$9,$J$3:$XFD$3,)+2)),\"\",IFERROR(INDEX($J$6:$XFD$85,C19,MATCH('Anrechnung erbrachter Leistung'!$B$9,$J$3:$XFD$3,)+2),\"\")),\"\")","v":""},null,null,14,"MB.1.0039.0.M","Fertigungsverfahren 2",5,null,"MB.1.0052.0.M","Grundlagen der Programmierung",5,null,"MB.1.0052.0.M","Grundlagen der Programmierung",5,null,"MB.1.0050.0.M","Grundlagen der Konstruktion",9,null,"MB.1.0094.0.M","Physik",6,null,"MB.1.0086.0.M","Mathematik 2 / Statistik",7,null,null,null,null,null,"MB.2.0025.0.M","Höhere Strömungsmaschinen",6,null,"MB.2.0025.0.M","Höhere Strömungsmaschinen",6]
[null,"",15,{"$f":"IFERROR(IF(INDEX($J$6:$XFD$85,C20,MATCH('Anrechnung erbrachter Leistung'!$B$9,$J$3:$XFD$3,)+1)=0,\"\",IFERROR(INDEX($J$6:$XFD$85,C20,MATCH('Anrechnung erbrachter Leistung'!$B$9,$J$3:$XFD$3,)+1),\"\")),\"\")","v":""},{"$f":"IFERROR(IF(INDEX($J$6:$XFD$85,C20,MATCH('Anrechnung erbrachter Leistung'!$B$9,$J$3:$XFD$3,)+0)=0,\"\",IFERROR(INDEX($J$6:$XFD$85,C20,MATCH('Anrechnung erbrachter Leistung'!$B$9,$J$3:$XFD$3,)+0),\"\")),\"\")","v":""},{"$f":"IFERROR(IF(ISBLANK(INDEX($J$6:$XFD$85,C20,MATCH('Anrechnung erbrachter Leistung'!$B$9,$J$3:$XFD$3,)+2)),\"\",IFERROR(INDEX($J$6:$XFD$85,C20,MATCH('Anrechnung erbrachter Leistung'!$B$9,$J$3:$XFD$3,)+2),\"\")),\"\")","v":""},null,null,15,"MB.1.0040.0.M","Festigkeitslehre",5,null,"MB.1.0056.0.M","Grundzüge der FEM",5,null,"EGU.1.0138.0.M","Grundlagen der Wasserstoffverwendung",5,null,"MB.1.0051.0.M","Grundlagen der Landtechnik",5,null,"MB.1.0113.0.M","Statik",5,null,"MB.1.0094.0.M","Physik",6,null,null,null,null,null,"MB.2.0027.0.M","Höhere Technische Mechanik",6,null,"MB.2.0027.0.M","Höhere Technische Mechanik",6]
[null,"",16,{"$f":"IFERROR(IF(INDEX($J$6:$XFD$85,C21,MATCH('Anrechnung erbrachter Leistung'!$B$9,$J$3:$XFD$3,)+1)=0,\"\",IFERROR(INDEX($J$6:$XFD$85,C21,MATCH('Anrechnung erbrachter Leistung'!$B$9,$J$3:$XFD$3,)+1),\"\")),\"\")","v":""},{"$f":"IFERROR(IF(INDEX($J$6:$XFD$85,C21,MATCH('Anrechnung erbrachter Leistung'!$B$9,$J$3:$XFD$3,)+0)=0,\"\",IFERROR(INDEX($J$6:$XFD$85,C21,MATCH('Anrechnung erbrachter Leistung'!$B$9,$J$3:$XFD$3,)+0),\"\")),\"\")","v":""},{"$f":"IFERROR(IF(ISBLANK(INDEX($J$6:$XFD$85,C21,MATCH('Anrechnung erbrachter Leistung'!$B$9,$J$3:$XFD$3,)+2)),\"\",IFERROR(INDEX($J$6:$XFD$85,C21,MATCH('Anrechnung erbrachter Leistung'!$B$9,$J$3:$XFD$3,)+2),\"\")),\"\")","v":""},null,null,16,"MB.1.0042.0.M","Fügetechnik",5,null,"MB.1.0057.0.M","Hydraulik",5,null,"MB.1.0056.0.M","Grundzüge der FEM",5,null,"MB.1.0052.0.M","Grundlagen der Programmierung",5,null,"MB.1.0114.0.M","Steuerungstechnik",5,null,"ITB.1.0175.0.M","Spansich f. Ingenieurwissenschaften und lateinamerikanische Kultur 1",5,null,null,null,null,null,"MB.2.0030.0.M","Integrierte Produktentwicklung",6,null,"MB.2.0030.0.M","Integrierte Produktentwicklung",6]
[null,"",17,{"$f":"IFERROR(IF(INDEX($J$6:$XFD$85,C22,MATCH('Anrechnung erbrachter Leistung'!$B$9,$J$3:$XFD$3,)+1)=0,\"\",IFERROR(INDEX($J$6:$XFD$85,C22,MATCH('Anrechnung erbrachter Leistung'!$B$9,$J$3:$XFD$3,)+1),\"\")),\"\")","v":""},{"$f":"IFERROR(IF(INDEX($J$6:$XFD$85,C22,MATCH('Anrechnung erbrachter Leistung'!$B$9,$J$3:$XFD$3,)+0)=0,\"\",IFERROR(INDEX($J$6:$XFD$85,C22,MATCH('Anrechnung erbrachter Leistung'!$B$9,$J$3:$XFD$3,)+0),\"\")),\"\")","v":""},{"$f":"IFERROR(IF(ISBLANK(INDEX($J$6:$XFD$85,C22,MATCH('Anrechnung erbrachter Leistung'!$B$9,$J$3:$XFD$3,)+2)),\"\",IFERROR(INDEX($J$6:$XFD$85,C22,MATCH('Anrechnung erbrachter Leistung'!$B$9,$J$3:$XFD$3,)+2),\"\")),\"\")","v":""},null,null,17,"ITB.1.0027.0.M","Grundlagen der Betriebswirtschaftslehre",5,null,"MB.1.0189.0.M","Ideenschmiede",5,null,"MB.1.0189.0.M","Ideenschmiede",5,null,"EGU.1.0138.0.M","Grundlagen der Wasserstoffverwendung",5,null,"MB.1.0129.0.M","Thermodynamik",6,null,"ITB.1.0176.0.M","Spansich f. Ingenieurwissenschaften und lateinamerikanische Kultur 2",5,null,null,null,null,null,"MB.2.0031.0.M","Knowledge Based Engineering",6,null,"MB.2.0031.0.M","Knowledge Based Engineering",6]
[null,"",18,{"$f":"IFERROR(IF(INDEX($J$6:$XFD$85,C23,MATCH('Anrechnung erbrachter Leistung'!$B$9,$J$3:$XFD$3,)+1)=0,\"\",IFERROR(INDEX($J$6:$XFD$85,C23,MATCH('Anrechnung erbrachter Leistung'!$B$9,$J$3:$XFD$3,)+1),\"\")),\"\")","v":""},{"$f":"IFERROR(IF(INDEX($J$6:$XFD$85,C23,MATCH('Anrechnung erbrachter Leistung'!$B$9,$J$3:$XFD$3,)+0)=0,\"\",IFERROR(INDEX($J$6:$XFD$85,C23,MATCH('Anrechnung erbrachter Leistung'!$B$9,$J$3:$XFD$3,)+0),\"\")),\"\")","v":""},{"$f":"IFERROR(IF(ISBLANK(INDEX($J$6:$XFD$85,C23,MATCH('Anrechnung erbrachter Leistung'!$B$9,$J$3:$XFD$3,)+2)),\"\",IFERROR(INDEX($J$6:$XFD$85,C23,MATCH('Anrechnung erbrachter Leistung'!$B$9,$J$3:$XFD$3,)+2),\"\")),\"\")","v":""},null,null,18,"MB.1.0050.0.M","Grundlagen der Konstruktion",9,null,"MB.1.0197.0.M","Informationsverarbeitung",5,null,"MB.1.0197.0.M","Informationsverarbeitung",5,null,"MB.1.0056.0.M","Grundzüge der FEM",5,null,"MB.1.0142.0.M","Werkstoffe",5,null,"MB.1.0113.0.M","Statik",5,null,null,null,null,null,"MB.2.0032.0.M","Kolbenmaschinen",6,null,"MB.2.0032.0.M","Kolbenmaschinen",6]
[null,"",19,{"$f":"IFERROR(IF(INDEX($J$6:$XFD$85,C24,MATCH('Anrechnung erbrachter Leistung'!$B$9,$J$3:$XFD$3,)+1)=0,\"\",IFERROR(INDEX($J$6:$XFD$85,C24,MATCH('Anrechnung erbrachter Leistung'!$B$9,$J$3:$XFD$3,)+1),\"\")),\"\")","v":""},{"$f":"IFERROR(IF(INDEX($J$6:$XFD$85,C24,MATCH('Anrechnung erbrachter Leistung'!$B$9,$J$3:$XFD$3,)+0)=0,\"\",IFERROR(INDEX($J$6:$XFD$85,C24,MATCH('Anrechnung erbrachter Leistung'!$B$9,$J$3:$XFD$3,)+0),\"\")),\"\")","v":""},{"$f":"IFERROR(IF(ISBLANK(INDEX($J$6:$XFD$85,C24,MATCH('Anrechnung erbrachter Leistung'!$B$9,$J$3:$XFD$3,)+2)),\"\",IFERROR(INDEX($J$6:$XFD$85,C24,MATCH('Anrechnung erbrachter Leistung'!$B$9,$J$3:$XFD$3,)+2),\"\")),\"\")","v":""},null,null,19,"MB.1.0051.0.M","Grundlagen der Landtechnik",5,null,"MB.1.0190.0.M","IT-Projektmanagement",5,null,"MB.1.0063.0.M","Karosserietechnik",5,null,"MB.1.0057.0.M","Hydraulik",5,null,null,null,null,null,"MB.1.0116.0.M","Strömungslehre",5,null,null,null,null,null,"MB.2.0036.0.M","Konstruieren mit Kunststoffen",6,null,"MB.2.0036.0.M","Konstruieren mit Kunststoffen",6]
[null,"",20,{"$f":"IFERROR(IF(INDEX($J$6:$XFD$85,C25,MATCH('Anrechnung erbrachter Leistung'!$B$9,$J$3:$XFD$3,)+1)=0,\"\",IFERROR(INDEX($J$6:$XFD$85,C25,MATCH('Anrechnung erbrachter Leistung'!$B$9,$J$3:$XFD$3,)+1),\"\")),\"\")","v":""},{"$f":"IFERROR(IF(INDEX($J$6:$XFD$85,C25,MATCH('Anrechnung erbrachter Leistung'!$B$9,$J$3:$XFD$3,)+0)=0,\"\",IFERROR(INDEX($J$6:$XFD$85,C25,MATCH('Anrechnung erbrachter Leistung'!$B$9,$J$3:$XFD$3,)+0),\"\")),\"\")","v":""},{"$f":"IFERROR(IF(ISBLANK(INDEX($J$6:$XFD$85,C25,MATCH('Anrechnung erbrachter Leistung'!$B$9,$J$3:$XFD$3,)+2)),\"\",IFERROR(INDEX($J$6:$XFD$85,C25,MATCH('Anrechnung erbrachter Leistung'!$B$9,$J$3:$XFD$3,)+2),\"\")),\"\")","v":""},null,null,20,"MB.1.0052.0.M","Grundlagen der Programmierung",5,null,"MB.1.0198.0.M","Kommunikation",0,null,"MB.1.0076.0.M","Konstruktion / CAD 1",5,null,"MB.1.0189.0.M","Ideenschmiede",5,null,null,null,null,null,"MB.1.0129.0.M","Thermodynamik",5,null,null,null,null,null,"MB.2.0037.0.M","Landmaschinentechnik  1",6,null,"MB.2.0037.0.M","Landmaschinentechnik  1",6]
[null,"",21,{"$f":"IFERROR(IF(INDEX($J$6:$XFD$85,C26,MATCH('Anrechnung erbrachter Leistung'!$B$9,$J$3:$XFD$3,)+1)=0,\"\",IFERROR(INDEX($J$6:$XFD$85,C26,MATCH('Anrechnung erbrachter Leistung'!$B$9,$J$3:$XFD$3,)+1),\"\")),\"\")","v":""},{"$f":"IFERROR(IF(INDEX($J$6:$XFD$85,C26,MATCH('Anrechnung erbrachter Leistung'!$B$9,$J$3:$XFD$3,)+0)=0,\"\",IFERROR(INDEX($J$6:$XFD$85,C26,MATCH('Anrechnung erbrachter Leistung'!$B$9,$J$3:$XFD$3,)+0),\"\")),\"\")","v":""},{"$f":"IFERROR(IF(ISBLANK(INDEX($J$6:$XFD$85,C26,MATCH('Anrechnung erbrachter Leistung'!$B$9,$J$3:$XFD$3,)+2)),\"\",IFERROR(INDEX($J$6:$XFD$85,C26,MATCH('Anrechnung erbrachter Leistung'!$B$9,$J$3:$XFD$3,)+2),\"\")),\"\")","v":""},null,null,21,"EGU.1.0138.0.M","Grundlagen der Wasserstoffverwendung",5,null,"ETI.1.0132.0.M","Künstliche Intelligenz",5,null,"MB.1.0079.0.M","Logistik",6,null,"MB.1.0197.0.M","Informationsverarbeitung",5,null,null,null,null,null,"MB.1.0143.0.M","Werkstofftechnik 1",5,null,null,null,null,null,"MB.2.0038.0.M","Landmaschinentechnik  2",6,null,"MB.2.0038.0.M","Landmaschinentechnik  2",6]
[null,"",22,{"$f":"IFERROR(IF(INDEX($J$6:$XFD$85,C27,MATCH('Anrechnung erbrachter Leistung'!$B$9,$J$3:$XFD$3,)+1)=0,\"\",IFERROR(INDEX($J$6:$XFD$85,C27,MATCH('Anrechnung erbrachter Leistung'!$B$9,$J$3:$XFD$3,)+1),\"\")),\"\")","v":""},{"$f":"IFERROR(IF(INDEX($J$6:$XFD$85,C27,MATCH('Anrechnung erbrachter Leistung'!$B$9,$J$3:$XFD$3,)+0)=0,\"\",IFERROR(INDEX($J$6:$XFD$85,C27,MATCH('Anrechnung erbrachter Leistung'!$B$9,$J$3:$XFD$3,)+0),\"\")),\"\")","v":""},{"$f":"IFERROR(IF(ISBLANK(INDEX($J$6:$XFD$85,C27,MATCH('Anrechnung erbrachter Leistung'!$B$9,$J$3:$XFD$3,)+2)),\"\",IFERROR(INDEX($J$6:$XFD$85,C27,MATCH('Anrechnung erbrachter Leistung'!$B$9,$J$3:$XFD$3,)+2),\"\")),\"\")","v":""},null,null,22,"MB.1.0056.0.M","Grundzüge der FEM",5,null,"MB.1.0080.0.M","Maschinenelemente",5,null,"ITB.1.0064.0.M","Marketing",6,null,"MB.1.0059.0.M","Innovative Werkstoffe",5,null,null,null,null,null,"MB.1.0144.0.M","Werkstofftechnik 2",5,null,null,null,null,null,"MB.2.0039.0.M","Literatur-Hausarbeit",6,null,"MB.2.0039.0.M","Literatur-Hausarbeit",6]
[null,"",23,{"$f":"IFERROR(IF(INDEX($J$6:$XFD$85,C28,MATCH('Anrechnung erbrachter Leistung'!$B$9,$J$3:$XFD$3,)+1)=0,\"\",IFERROR(INDEX($J$6:$XFD$85,C28,MATCH('Anrechnung erbrachter Leistung'!$B$9,$J$3:$XFD$3,)+1),\"\")),\"\")","v":""},{"$f":"IFERROR(IF(INDEX($J$6:$XFD$85,C28,MATCH('Anrechnung erbrachter Leistung'!$B$9,$J$3:$XFD$3,)+0)=0,\"\",IFERROR(INDEX($J$6:$XFD$85,C28,MATCH('Anrechnung erbrachter Leistung'!$B$9,$J$3:$XFD$3,)+0),\"\")),\"\")","v":""},{"$f":"IFERROR(IF(ISBLANK(INDEX($J$6:$XFD$85,C28,MATCH('Anrechnung erbrachter Leistung'!$B$9,$J$3:$XFD$3,)+2)),\"\",IFERROR(INDEX($J$6:$XFD$85,C28,MATCH('Anrechnung erbrachter Leistung'!$B$9,$J$3:$XFD$3,)+2),\"\")),\"\")","v":""},null,null,23,"MB.1.0057.0.M","Hydraulik",5,null,"MB.1.0082.0.M","Mathematik 1",8,null,"MB.1.0080.0.M","Maschinenelemente",5,null,"MB.1.0190.0.M","IT-Projektmanagement",5,null,null,null,null,null,null,null,null,null,null,null,null,null,"MB.2.0041.0.M","Managementkompetenz",6,null,"MB.2.0041.0.M","Managementkompetenz",6]
[null,"",24,{"$f":"IFERROR(IF(INDEX($J$6:$XFD$85,C29,MATCH('Anrechnung erbrachter Leistung'!$B$9,$J$3:$XFD$3,)+1)=0,\"\",IFERROR(INDEX($J$6:$XFD$85,C29,MATCH('Anrechnung erbrachter Leistung'!$B$9,$J$3:$XFD$3,)+1),\"\")),\"\")","v":""},{"$f":"IFERROR(IF(INDEX($J$6:$XFD$85,C29,MATCH('Anrechnung erbrachter Leistung'!$B$9,$J$3:$XFD$3,)+0)=0,\"\",IFERROR(INDEX($J$6:$XFD$85,C29,MATCH('Anrechnung erbrachter Leistung'!$B$9,$J$3:$XFD$3,)+0),\"\")),\"\")","v":""},{"$f":"IFERROR(IF(ISBLANK(INDEX($J$6:$XFD$85,C29,MATCH('Anrechnung erbrachter Leistung'!$B$9,$J$3:$XFD$3,)+2)),\"\",IFERROR(INDEX($J$6:$XFD$85,C29,MATCH('Anrechnung erbrachter Leistung'!$B$9,$J$3:$XFD$3,)+2),\"\")),\"\")","v":""},null,null,24,"MB.1.0189.0.M","Ideenschmiede",5,null,"MB.1.0086.0.M","Mathematik 2 / Statistik",7,null,"MB.1.0082.0.M","Mathematik 1",8,null,"MB.1.0063.0.M","Karosserietechnik",5,null,null,null,null,null,null,null,null,null,null,null,null,null,"MB.2.0042.0.M","Maschinendynamik",6,null,"MB.2.0042.0.M","Maschinendynamik",6]
[null,"",25,{"$f":"IFERROR(IF(INDEX($J$6:$XFD$85,C30,MATCH('Anrechnung erbrachter Leistung'!$B$9,$J$3:$XFD$3,)+1)=0,\"\",IFERROR(INDEX($J$6:$XFD$85,C30,MATCH('Anrechnung erbrachter Leistung'!$B$9,$J$3:$XFD$3,)+1),\"\")),\"\")","v":""},{"$f":"IFERROR(IF(INDEX($J$6:$XFD$85,C30,MATCH('Anrechnung erbrachter Leistung'!$B$9,$J$3:$XFD$3,)+0)=0,\"\",IFERROR(INDEX($J$6:$XFD$85,C30,MATCH('Anrechnung erbrachter Leistung'!$B$9,$J$3:$XFD$3,)+0),\"\")),\"\")","v":""},{"$f":"IFERROR(IF(ISBLANK(INDEX($J$6:$XFD$85,C30,MATCH('Anrechnung erbrachter Leistung'!$B$9,$J$3:$XFD$3,)+2)),\"\",IFERROR(INDEX($J$6:$XFD$85,C30,MATCH('Anrechnung erbrachter Leistung'!$B$9,$J$3:$XFD$3,)+2),\"\")),\"\")","v":""},null,null,25,"MB.1.0197.0.M","Informationsverarbeitung",5,null,"MB.1.0088.0.M","Messtechnik",5,null,"MB.1.0086.0.M","Mathematik 2 / Statistik",7,null,"MB.1.0198.0.M","Kommunikation",0,null,null,null,null,null,null,null,null,null,null,null,null,null,"MB.2.0043.0.M","Mehrkörpersimulation",6,null,"MB.2.0043.0.M","Mehrkörpersimulation",6]
[null,"",26,{"$f":"IFERROR(IF(INDEX($J$6:$XFD$85,C31,MATCH('Anrechnung erbrachter Leistung'!$B$9,$J$3:$XFD$3,)+1)=0,\"\",IFERROR(INDEX($J$6:$XFD$85,C31,MATCH('Anrechnung erbrachter Leistung'!$B$9,$J$3:$XFD$3,)+1),\"\")),\"\")","v":""},{"$f":"IFERROR(IF(INDEX($J$6:$XFD$85,C31,MATCH('Anrechnung erbrachter Leistung'!$B$9,$J$3:$XFD$3,)+0)=0,\"\",IFERROR(INDEX($J$6:$XFD$85,C31,MATCH('Anrechnung erbrachter Leistung'!$B$9,$J$3:$XFD$3,)+0),\"\")),\"\")","v":""},{"$f":"IFERROR(IF(ISBLANK(INDEX($J$6:$XFD$85,C31,MATCH('Anrechnung erbrachter Leistung'!$B$9,$J$3:$XFD$3,)+2)),\"\",IFERROR(INDEX($J$6:$XFD$85,C31,MATCH('Anrechnung erbrachter Leistung'!$B$9,$J$3:$XFD$3,)+2),\"\")),\"\")","v":""},null,null,26,"MB.1.0059.0.M","Innovative Werkstoffe",5,null,"MB.1.0191.0.M","Modellbildung und Simulation",5,null,"MB.1.0088.0.M","Messtechnik",5,null,"MB.1.0076.0.M","Konstruktion / CAD 1",5,null,null,null,null,null,null,null,null,null,null,null,null,null,"MB.2.0044.0.M","Moderne Konzepte der Programmierung",6,null,"MB.2.0044.0.M","Moderne Konzepte der Programmierung",6]
[null,"",27,{"$f":"IFERROR(IF(INDEX($J$6:$XFD$85,C32,MATCH('Anrechnung erbrachter Leistung'!$B$9,$J$3:$XFD$3,)+1)=0,\"\",IFERROR(INDEX($J$6:$XFD$85,C32,MATCH('Anrechnung erbrachter Leistung'!$B$9,$J$3:$XFD$3,)+1),\"\")),\"\")","v":""},{"$f":"IFERROR(IF(INDEX($J$6:$XFD$85,C32,MATCH('Anrechnung erbrachter Leistung'!$B$9,$J$3:$XFD$3,)+0)=0,\"\",IFERROR(INDEX($J$6:$XFD$85,C32,MATCH('Anrechnung erbrachter Leistung'!$B$9,$J$3:$XFD$3,)+0),\"\")),\"\")","v":""},{"$f":"IFERROR(IF(ISBLANK(INDEX($J$6:$XFD$85,C32,MATCH('Anrechnung erbrachter Leistung'!$B$9,$J$3:$XFD$3,)+2)),\"\",IFERROR(INDEX($J$6:$XFD$85,C32,MATCH('Anrechnung erbrachter Leistung'!$B$9,$J$3:$XFD$3,)+2),\"\")),\"\")","v":""},null,null,27,"MB.1.0190.0.M","IT-Projektmanagement",5,null,"MB.1.0091.0.M","Numerik Software",5,null,"MB.1.0094.0.M","Physik",6,null,"MB.1.0077.0.M","Konstruktion / CAD 2",5,null,null,null,null,null,null,null,null,null,null,null,null,null,"MB.2.0045.0.M","Nachwachsende Rohstoffe",6,null,"MB.2.0045.0.M","Nachwachsende Rohstoffe",6]
[null,null,28,{"$f":"IFERROR(IF(INDEX($J$6:$XFD$85,C33,MATCH('Anrechnung erbrachter Leistung'!$B$9,$J$3:$XFD$3,)+1)=0,\"\",IFERROR(INDEX($J$6:$XFD$85,C33,MATCH('Anrechnung erbrachter Leistung'!$B$9,$J$3:$XFD$3,)+1),\"\")),\"\")","v":""},{"$f":"IFERROR(IF(INDEX($J$6:$XFD$85,C33,MATCH('Anrechnung erbrachter Leistung'!$B$9,$J$3:$XFD$3,)+0)=0,\"\",IFERROR(INDEX($J$6:$XFD$85,C33,MATCH('Anrechnung erbrachter Leistung'!$B$9,$J$3:$XFD$3,)+0),\"\")),\"\")","v":""},{"$f":"IFERROR(IF(ISBLANK(INDEX($J$6:$XFD$85,C33,MATCH('Anrechnung erbrachter Leistung'!$B$9,$J$3:$XFD$3,)+2)),\"\",IFERROR(INDEX($J$6:$XFD$85,C33,MATCH('Anrechnung erbrachter Leistung'!$B$9,$J$3:$XFD$3,)+2),\"\")),\"\")","v":""},null,null,28,"MB.1.0063.0.M","Karosserietechnik",5,null,"MB.1.0199.0.M","Objektorientierte Programmierung",5,null,"ITB.1.0079.0.M","Produktionswirtschaftliche Anwendungen",5,null,"MB.1.0080.0.M","Maschinenelemente",5,null,null,null,null,null,null,null,null,null,null,null,null,null,"MB.2.0047.0.M","Operations Research",6,null,"MB.2.0047.0.M","Operations Research",6]
[null,null,29,{"$f":"IFERROR(IF(INDEX($J$6:$XFD$85,C34,MATCH('Anrechnung erbrachter Leistung'!$B$9,$J$3:$XFD$3,)+1)=0,\"\",IFERROR(INDEX($J$6:$XFD$85,C34,MATCH('Anrechnung erbrachter Leistung'!$B$9,$J$3:$XFD$3,)+1),\"\")),\"\")","v":""},{"$f":"IFERROR(IF(INDEX($J$6:$XFD$85,C34,MATCH('Anrechnung erbrachter Leistung'!$B$9,$J$3:$XFD$3,)+0)=0,\"\",IFERROR(INDEX($J$6:$XFD$85,C34,MATCH('Anrechnung erbrachter Leistung'!$B$9,$J$3:$XFD$3,)+0),\"\")),\"\")","v":""},{"$f":"IFERROR(IF(ISBLANK(INDEX($J$6:$XFD$85,C34,MATCH('Anrechnung erbrachter Leistung'!$B$9,$J$3:$XFD$3,)+2)),\"\",IFERROR(INDEX($J$6:$XFD$85,C34,MATCH('Anrechnung erbrachter Leistung'!$B$9,$J$3:$XFD$3,)+2),\"\")),\"\")","v":""},null,null,29,"MB.1.0198.0.M","Kommunikation",0,null,"MB.1.0094.0.M","Physik",6,null,"MB.1.0104.0.M","Qualitätsmanagement",5,null,"MB.1.0082.0.M","Mathematik 1",8,null,null,null,null,null,null,null,null,null,null,null,null,null,"MB.2.0049.0.M","Projektarbeit",6,null,"MB.2.0049.0.M","Projektarbeit",6]
[null,null,30,{"$f":"IFERROR(IF(INDEX($J$6:$XFD$85,C35,MATCH('Anrechnung erbrachter Leistung'!$B$9,$J$3:$XFD$3,)+1)=0,\"\",IFERROR(INDEX($J$6:$XFD$85,C35,MATCH('Anrechnung erbrachter Leistung'!$B$9,$J$3:$XFD$3,)+1),\"\")),\"\")","v":""},{"$f":"IFERROR(IF(INDEX($J$6:$XFD$85,C35,MATCH('Anrechnung erbrachter Leistung'!$B$9,$J$3:$XFD$3,)+0)=0,\"\",IFERROR(INDEX($J$6:$XFD$85,C35,MATCH('Anrechnung erbrachter Leistung'!$B$9,$J$3:$XFD$3,)+0),\"\")),\"\")","v":""},{"$f":"IFERROR(IF(ISBLANK(INDEX($J$6:$XFD$85,C35,MATCH('Anrechnung erbrachter Leistung'!$B$9,$J$3:$XFD$3,)+2)),\"\",IFERROR(INDEX($J$6:$XFD$85,C35,MATCH('Anrechnung erbrachter Leistung'!$B$9,$J$3:$XFD$3,)+2),\"\")),\"\")","v":""},null,null,30,"MB.1.0076.0.M","Konstruktion / CAD 1",5,null,"ITB.1.0079.0.M","Produktionswirtschaftliche Anwendungen",5,null,"MB.1.0113.0.M","Statik",5,null,"MB.1.0086.0.M","Mathematik 2 / Statistik",7,null,null,null,null,null,null,null,null,null,null,null,null,null,"MB.2.0055.0.M","Recht / Produkthaftung",6,null,"MB.2.0055.0.M","Recht / Produkthaftung",6]
[null,null,31,{"$f":"IFERROR(IF(INDEX($J$6:$XFD$85,C36,MATCH('Anrechnung erbrachter Leistung'!$B$9,$J$3:$XFD$3,)+1)=0,\"\",IFERROR(INDEX($J$6:$XFD$85,C36,MATCH('Anrechnung erbrachter Leistung'!$B$9,$J$3:$XFD$3,)+1),\"\")),\"\")","v":""},{"$f":"IFERROR(IF(INDEX($J$6:$XFD$85,C36,MATCH('Anrechnung erbrachter Leistung'!$B$9,$J$3:$XFD$3,)+0)=0,\"\",IFERROR(INDEX($J$6:$XFD$85,C36,MATCH('Anrechnung erbrachter Leistung'!$B$9,$J$3:$XFD$3,)+0),\"\")),\"\")","v":""},{"$f":"IFERROR(IF(ISBLANK(INDEX($J$6:$XFD$85,C36,MATCH('Anrechnung erbrachter Leistung'!$B$9,$J$3:$XFD$3,)+2)),\"\",IFERROR(INDEX($J$6:$XFD$85,C36,MATCH('Anrechnung erbrachter Leistung'!$B$9,$J$3:$XFD$3,)+2),\"\")),\"\")","v":""},null,null,31,"MB.1.0077.0.M","Konstruktion / CAD 2",5,null,"MB.1.0104.0.M","Qualitätsmanagement",5,null,"ITB.1.0106.0.M","Technisches Englisch",5,null,"MB.1.0088.0.M","Messtechnik",5,null,null,null,null,null,null,null,null,null,null,null,null,null,"MB.2.0057.0.M","Robotertechnik",6,null,"MB.2.0057.0.M","Robotertechnik",6]
[null,null,32,{"$f":"IFERROR(IF(INDEX($J$6:$XFD$85,C37,MATCH('Anrechnung erbrachter Leistung'!$B$9,$J$3:$XFD$3,)+1)=0,\"\",IFERROR(INDEX($J$6:$XFD$85,C37,MATCH('Anrechnung erbrachter Leistung'!$B$9,$J$3:$XFD$3,)+1),\"\")),\"\")","v":""},{"$f":"IFERROR(IF(INDEX($J$6:$XFD$85,C37,MATCH('Anrechnung erbrachter Leistung'!$B$9,$J$3:$XFD$3,)+0)=0,\"\",IFERROR(INDEX($J$6:$XFD$85,C37,MATCH('Anrechnung erbrachter Leistung'!$B$9,$J$3:$XFD$3,)+0),\"\")),\"\")","v":""},{"$f":"IFERROR(IF(ISBLANK(INDEX($J$6:$XFD$85,C37,MATCH('Anrechnung erbrachter Leistung'!$B$9,$J$3:$XFD$3,)+2)),\"\",IFERROR(INDEX($J$6:$XFD$85,C37,MATCH('Anrechnung erbrachter Leistung'!$B$9,$J$3:$XFD$3,)+2),\"\")),\"\")","v":""},null,null,32,"MB.1.0080.0.M","Maschinenelemente",5,null,"MB.1.0105.0.M","Regelungstechnik",5,null,"MB.1.0185.0.M","Technisches Projekt",5,null,"MB.1.0191.0.M","Modellbildung u. Simulation",5,null,null,null,null,null,null,null,null,null,null,null,null,null,"MB.2.0061.0.M","Werkzeugmaschinen",6,null,"MB.2.0061.0.M","Werkzeugmaschinen",6]
[null,null,33,{"$f":"IFERROR(IF(INDEX($J$6:$XFD$85,C38,MATCH('Anrechnung erbrachter Leistung'!$B$9,$J$3:$XFD$3,)+1)=0,\"\",IFERROR(INDEX($J$6:$XFD$85,C38,MATCH('Anrechnung erbrachter Leistung'!$B$9,$J$3:$XFD$3,)+1),\"\")),\"\")","v":""},{"$f":"IFERROR(IF(INDEX($J$6:$XFD$85,C38,MATCH('Anrechnung erbrachter Leistung'!$B$9,$J$3:$XFD$3,)+0)=0,\"\",IFERROR(INDEX($J$6:$XFD$85,C38,MATCH('Anrechnung erbrachter Leistung'!$B$9,$J$3:$XFD$3,)+0),\"\")),\"\")","v":""},{"$f":"IFERROR(IF(ISBLANK(INDEX($J$6:$XFD$85,C38,MATCH('Anrechnung erbrachter Leistung'!$B$9,$J$3:$XFD$3,)+2)),\"\",IFERROR(INDEX($J$6:$XFD$85,C38,MATCH('Anrechnung erbrachter Leistung'!$B$9,$J$3:$XFD$3,)+2),\"\")),\"\")","v":""},null,null,33,"MB.1.0082.0.M","Mathematik 1",8,null,"MB.1.0113.0.M","Statik",5,null,"MB.1.0194.0.M","Thermofluiddynamik",5,null,"MB.1.0091.0.M","Numerik-Software",5,null,null,null,null,null,null,null,null,null,null,null,null,null,"MB.2.0062.0.M","Wissenschaftliches Projekt",6,null,"MB.2.0062.0.M","Wissenschaftliches Projekt",6]
[null,null,34,{"$f":"IFERROR(IF(INDEX($J$6:$XFD$85,C39,MATCH('Anrechnung erbrachter Leistung'!$B$9,$J$3:$XFD$3,)+1)=0,\"\",IFERROR(INDEX($J$6:$XFD$85,C39,MATCH('Anrechnung erbrachter Leistung'!$B$9,$J$3:$XFD$3,)+1),\"\")),\"\")","v":""},{"$f":"IFERROR(IF(INDEX($J$6:$XFD$85,C39,MATCH('Anrechnung erbrachter Leistung'!$B$9,$J$3:$XFD$3,)+0)=0,\"\",IFERROR(INDEX($J$6:$XFD$85,C39,MATCH('Anrechnung erbrachter Leistung'!$B$9,$J$3:$XFD$3,)+0),\"\")),\"\")","v":""},{"$f":"IFERROR(IF(ISBLANK(INDEX($J$6:$XFD$85,C39,MATCH('Anrechnung erbrachter Leistung'!$B$9,$J$3:$XFD$3,)+2)),\"\",IFERROR(INDEX($J$6:$XFD$85,C39,MATCH('Anrechnung erbrachter Leistung'!$B$9,$J$3:$XFD$3,)+2),\"\")),\"\")","v":""},null,null,34,"MB.1.0086.0.M","Mathematik 2 / Statistik",7,null,"MB.1.0114.0.M","Steuerungstechnik",5,null,"ITB.1.0113.0.M","Unternehmensführung",6,null,"MB.1.0199.0.M","Objektorientierte Programmierung",5]
[null,null,35,{"$f":"IFERROR(IF(INDEX($J$6:$XFD$85,C40,MATCH('Anrechnung erbrachter Leistung'!$B$9,$J$3:$XFD$3,)+1)=0,\"\",IFERROR(INDEX($J$6:$XFD$85,C40,MATCH('Anrechnung erbrachter Leistung'!$B$9,$J$3:$XFD$3,)+1),\"\")),\"\")","v":""},{"$f":"IFERROR(IF(INDEX($J$6:$XFD$85,C40,MATCH('Anrechnung erbrachter Leistung'!$B$9,$J$3:$XFD$3,)+0)=0,\"\",IFERROR(INDEX($J$6:$XFD$85,C40,MATCH('Anrechnung erbrachter Leistung'!$B$9,$J$3:$XFD$3,)+0),\"\")),\"\")","v":""},{"$f":"IFERROR(IF(ISBLANK(INDEX($J$6:$XFD$85,C40,MATCH('Anrechnung erbrachter Leistung'!$B$9,$J$3:$XFD$3,)+2)),\"\",IFERROR(INDEX($J$6:$XFD$85,C40,MATCH('Anrechnung erbrachter Leistung'!$B$9,$J$3:$XFD$3,)+2),\"\")),\"\")","v":""},null,null,35,"MB.1.0088.0.M","Messtechnik",5,null,"MB.1.0120.0.M","Strömungssimulation",5,null,"MB.1.0205.0.M","Verbrennungskraftmaschinen",5,null,"MB.1.0094.0.M","Physik",6]
[null,null,36,{"$f":"IFERROR(IF(INDEX($J$6:$XFD$85,C41,MATCH('Anrechnung erbrachter Leistung'!$B$9,$J$3:$XFD$3,)+1)=0,\"\",IFERROR(INDEX($J$6:$XFD$85,C41,MATCH('Anrechnung erbrachter Leistung'!$B$9,$J$3:$XFD$3,)+1),\"\")),\"\")","v":""},{"$f":"IFERROR(IF(INDEX($J$6:$XFD$85,C41,MATCH('Anrechnung erbrachter Leistung'!$B$9,$J$3:$XFD$3,)+0)=0,\"\",IFERROR(INDEX($J$6:$XFD$85,C41,MATCH('Anrechnung erbrachter Leistung'!$B$9,$J$3:$XFD$3,)+0),\"\")),\"\")","v":""},{"$f":"IFERROR(IF(ISBLANK(INDEX($J$6:$XFD$85,C41,MATCH('Anrechnung erbrachter Leistung'!$B$9,$J$3:$XFD$3,)+2)),\"\",IFERROR(INDEX($J$6:$XFD$85,C41,MATCH('Anrechnung erbrachter Leistung'!$B$9,$J$3:$XFD$3,)+2),\"\")),\"\")","v":""},null,null,36,"MB.1.0191.0.M","Modellbildung u. Simulation",5,null,"ITB.1.0106.0.M","Technisches Englisch",5,null,"MB.1.0134.0.M","Verfahrenstechnik 1",5,null,"ITB.1.0079.0.M","Produktionswirtschaftliche Anwendungen",5]
[null,null,37,{"$f":"IFERROR(IF(INDEX($J$6:$XFD$85,C42,MATCH('Anrechnung erbrachter Leistung'!$B$9,$J$3:$XFD$3,)+1)=0,\"\",IFERROR(INDEX($J$6:$XFD$85,C42,MATCH('Anrechnung erbrachter Leistung'!$B$9,$J$3:$XFD$3,)+1),\"\")),\"\")","v":""},{"$f":"IFERROR(IF(INDEX($J$6:$XFD$85,C42,MATCH('Anrechnung erbrachter Leistung'!$B$9,$J$3:$XFD$3,)+0)=0,\"\",IFERROR(INDEX($J$6:$XFD$85,C42,MATCH('Anrechnung erbrachter Leistung'!$B$9,$J$3:$XFD$3,)+0),\"\")),\"\")","v":""},{"$f":"IFERROR(IF(ISBLANK(INDEX($J$6:$XFD$85,C42,MATCH('Anrechnung erbrachter Leistung'!$B$9,$J$3:$XFD$3,)+2)),\"\",IFERROR(INDEX($J$6:$XFD$85,C42,MATCH('Anrechnung erbrachter Leistung'!$B$9,$J$3:$XFD$3,)+2),\"\")),\"\")","v":""},null,null,37,"MB.1.0091.0.M","Numerik-Software",5,null,"MB.1.0185.0.M","Technisches Projekt 1",5,null,"MB.1.0136.0.M","Verfahrenstechnik 2",5,null,"MB.1.0102.0.M*","Projektarbeit",5]
[null,null,38,{"$f":"IFERROR(IF(INDEX($J$6:$XFD$85,C43,MATCH('Anrechnung erbrachter Leistung'!$B$9,$J$3:$XFD$3,)+1)=0,\"\",IFERROR(INDEX($J$6:$XFD$85,C43,MATCH('Anrechnung erbrachter Leistung'!$B$9,$J$3:$XFD$3,)+1),\"\")),\"\")","v":""},{"$f":"IFERROR(IF(INDEX($J$6:$XFD$85,C43,MATCH('Anrechnung erbrachter Leistung'!$B$9,$J$3:$XFD$3,)+0)=0,\"\",IFERROR(INDEX($J$6:$XFD$85,C43,MATCH('Anrechnung erbrachter Leistung'!$B$9,$J$3:$XFD$3,)+0),\"\")),\"\")","v":""},{"$f":"IFERROR(IF(ISBLANK(INDEX($J$6:$XFD$85,C43,MATCH('Anrechnung erbrachter Leistung'!$B$9,$J$3:$XFD$3,)+2)),\"\",IFERROR(INDEX($J$6:$XFD$85,C43,MATCH('Anrechnung erbrachter Leistung'!$B$9,$J$3:$XFD$3,)+2),\"\")),\"\")","v":""},null,null,38,"MB.1.0199.0.M","Objektorientierte Programmierung",5,null,"MB.1.0194.0.M","Thermofluiddynamik",5,null,null,"Vertiefungsmodul Wirtschaft 1",5,null,"MB.1.0103.0.M","Projektmanagement",5]
[null,null,39,{"$f":"IFERROR(IF(INDEX($J$6:$XFD$85,C44,MATCH('Anrechnung erbrachter Leistung'!$B$9,$J$3:$XFD$3,)+1)=0,\"\",IFERROR(INDEX($J$6:$XFD$85,C44,MATCH('Anrechnung erbrachter Leistung'!$B$9,$J$3:$XFD$3,)+1),\"\")),\"\")","v":""},{"$f":"IFERROR(IF(INDEX($J$6:$XFD$85,C44,MATCH('Anrechnung erbrachter Leistung'!$B$9,$J$3:$XFD$3,)+0)=0,\"\",IFERROR(INDEX($J$6:$XFD$85,C44,MATCH('Anrechnung erbrachter Leistung'!$B$9,$J$3:$XFD$3,)+0),\"\")),\"\")","v":""},{"$f":"IFERROR(IF(ISBLANK(INDEX($J$6:$XFD$85,C44,MATCH('Anrechnung erbrachter Leistung'!$B$9,$J$3:$XFD$3,)+2)),\"\",IFERROR(INDEX($J$6:$XFD$85,C44,MATCH('Anrechnung erbrachter Leistung'!$B$9,$J$3:$XFD$3,)+2),\"\")),\"\")","v":""},null,null,39,"MB.1.0094.0.M","Physik",6,null,"MB.1.0201.0.M","Virtual Reality in der Fabrikplanung",5,null,null,"Vertiefungsmodul Wirtschaft 2",5,null,"MB.1.0104.0.M","Qualitätsmanagement",5]
[null,null,40,{"$f":"IFERROR(IF(INDEX($J$6:$XFD$85,C45,MATCH('Anrechnung erbrachter Leistung'!$B$9,$J$3:$XFD$3,)+1)=0,\"\",IFERROR(INDEX($J$6:$XFD$85,C45,MATCH('Anrechnung erbrachter Leistung'!$B$9,$J$3:$XFD$3,)+1),\"\")),\"\")","v":""},{"$f":"IFERROR(IF(INDEX($J$6:$XFD$85,C45,MATCH('Anrechnung erbrachter Leistung'!$B$9,$J$3:$XFD$3,)+0)=0,\"\",IFERROR(INDEX($J$6:$XFD$85,C45,MATCH('Anrechnung erbrachter Leistung'!$B$9,$J$3:$XFD$3,)+0),\"\")),\"\")","v":""},{"$f":"IFERROR(IF(ISBLANK(INDEX($J$6:$XFD$85,C45,MATCH('Anrechnung erbrachter Leistung'!$B$9,$J$3:$XFD$3,)+2)),\"\",IFERROR(INDEX($J$6:$XFD$85,C45,MATCH('Anrechnung erbrachter Leistung'!$B$9,$J$3:$XFD$3,)+2),\"\")),\"\")","v":""},null,null,40,"ITB.1.0079.0.M","Produktionswirtschaftliche Anwendungen",5,null,"MB.1.0142.0.M","Werkstoffe",5,null,"MB.1.0142.0.M","Werkstoffe",5,null,"MB.1.0105.0.M","Regelungstechnik",5]
[null,null,41,{"$f":"IFERROR(IF(INDEX($J$6:$XFD$85,C46,MATCH('Anrechnung erbrachter Leistung'!$B$9,$J$3:$XFD$3,)+1)=0,\"\",IFERROR(INDEX($J$6:$XFD$85,C46,MATCH('Anrechnung erbrachter Leistung'!$B$9,$J$3:$XFD$3,)+1),\"\")),\"\")","v":""},{"$f":"IFERROR(IF(INDEX($J$6:$XFD$85,C46,MATCH('Anrechnung erbrachter Leistung'!$B$9,$J$3:$XFD$3,)+0)=0,\"\",IFERROR(INDEX($J$6:$XFD$85,C46,MATCH('Anrechnung erbrachter Leistung'!$B$9,$J$3:$XFD$3,)+0),\"\")),\"\")","v":""},{"$f":"IFERROR(IF(ISBLANK(INDEX($J$6:$XFD$85,C46,MATCH('Anrechnung erbrachter Leistung'!$B$9,$J$3:$XFD$3,)+2)),\"\",IFERROR(INDEX($J$6:$XFD$85,C46,MATCH('Anrechnung erbrachter Leistung'!$B$9,$J$3:$XFD$3,)+2),\"\")),\"\")","v":""},null,null,41,"MB.1.0103.0.M","Projektmanagement",5,null,null,null,null,null,"ITB.1.0119.0.M","Wirtschaftsenglisch",5,null,"MB.1.0113.0.M","Statik",5]
[null,null,42,{"$f":"IFERROR(IF(INDEX($J$6:$XFD$85,C47,MATCH('Anrechnung erbrachter Leistung'!$B$9,$J$3:$XFD$3,)+1)=0,\"\",IFERROR(INDEX($J$6:$XFD$85,C47,MATCH('Anrechnung erbrachter Leistung'!$B$9,$J$3:$XFD$3,)+1),\"\")),\"\")","v":""},{"$f":"IFERROR(IF(INDEX($J$6:$XFD$85,C47,MATCH('Anrechnung erbrachter Leistung'!$B$9,$J$3:$XFD$3,)+0)=0,\"\",IFERROR(INDEX($J$6:$XFD$85,C47,MATCH('Anrechnung erbrachter Leistung'!$B$9,$J$3:$XFD$3,)+0),\"\")),\"\")","v":""},{"$f":"IFERROR(IF(ISBLANK(INDEX($J$6:$XFD$85,C47,MATCH('Anrechnung erbrachter Leistung'!$B$9,$J$3:$XFD$3,)+2)),\"\",IFERROR(INDEX($J$6:$XFD$85,C47,MATCH('Anrechnung erbrachter Leistung'!$B$9,$J$3:$XFD$3,)+2),\"\")),\"\")","v":""},null,null,42,"MB.1.0104.0.M","Qualitätsmanagement",5,null,null,null,null,null,null,null,null,null,"MB.1.0114.0.M","Steuerungstechnik",5]
[null,null,43,{"$f":"IFERROR(IF(INDEX($J$6:$XFD$85,C48,MATCH('Anrechnung erbrachter Leistung'!$B$9,$J$3:$XFD$3,)+1)=0,\"\",IFERROR(INDEX($J$6:$XFD$85,C48,MATCH('Anrechnung erbrachter Leistung'!$B$9,$J$3:$XFD$3,)+1),\"\")),\"\")","v":""},{"$f":"IFERROR(IF(INDEX($J$6:$XFD$85,C48,MATCH('Anrechnung erbrachter Leistung'!$B$9,$J$3:$XFD$3,)+0)=0,\"\",IFERROR(INDEX($J$6:$XFD$85,C48,MATCH('Anrechnung erbrachter Leistung'!$B$9,$J$3:$XFD$3,)+0),\"\")),\"\")","v":""},{"$f":"IFERROR(IF(ISBLANK(INDEX($J$6:$XFD$85,C48,MATCH('Anrechnung erbrachter Leistung'!$B$9,$J$3:$XFD$3,)+2)),\"\",IFERROR(INDEX($J$6:$XFD$85,C48,MATCH('Anrechnung erbrachter Leistung'!$B$9,$J$3:$XFD$3,)+2),\"\")),\"\")","v":""},null,null,43,"MB.1.0105.0.M","Regelungstechnik",5,null,null,null,null,null,null,null,null,null,"MB.1.0116.0.M","Strömungslehre",5]
[null,null,44,{"$f":"IFERROR(IF(INDEX($J$6:$XFD$85,C49,MATCH('Anrechnung erbrachter Leistung'!$B$9,$J$3:$XFD$3,)+1)=0,\"\",IFERROR(INDEX($J$6:$XFD$85,C49,MATCH('Anrechnung erbrachter Leistung'!$B$9,$J$3:$XFD$3,)+1),\"\")),\"\")","v":""},{"$f":"IFERROR(IF(INDEX($J$6:$XFD$85,C49,MATCH('Anrechnung erbrachter Leistung'!$B$9,$J$3:$XFD$3,)+0)=0,\"\",IFERROR(INDEX($J$6:$XFD$85,C49,MATCH('Anrechnung erbrachter Leistung'!$B$9,$J$3:$XFD$3,)+0),\"\")),\"\")","v":""},{"$f":"IFERROR(IF(ISBLANK(INDEX($J$6:$XFD$85,C49,MATCH('Anrechnung erbrachter Leistung'!$B$9,$J$3:$XFD$3,)+2)),\"\",IFERROR(INDEX($J$6:$XFD$85,C49,MATCH('Anrechnung erbrachter Leistung'!$B$9,$J$3:$XFD$3,)+2),\"\")),\"\")","v":""},null,null,44,"MB.1.0113.0.M","Statik",5,null,null,null,null,null,null,null,null,null,"MB.1.0204.0.M","Strömungsmaschinen u. CFD",5]
[null,null,45,{"$f":"IFERROR(IF(INDEX($J$6:$XFD$85,C50,MATCH('Anrechnung erbrachter Leistung'!$B$9,$J$3:$XFD$3,)+1)=0,\"\",IFERROR(INDEX($J$6:$XFD$85,C50,MATCH('Anrechnung erbrachter Leistung'!$B$9,$J$3:$XFD$3,)+1),\"\")),\"\")","v":""},{"$f":"IFERROR(IF(INDEX($J$6:$XFD$85,C50,MATCH('Anrechnung erbrachter Leistung'!$B$9,$J$3:$XFD$3,)+0)=0,\"\",IFERROR(INDEX($J$6:$XFD$85,C50,MATCH('Anrechnung erbrachter Leistung'!$B$9,$J$3:$XFD$3,)+0),\"\")),\"\")","v":""},{"$f":"IFERROR(IF(ISBLANK(INDEX($J$6:$XFD$85,C50,MATCH('Anrechnung erbrachter Leistung'!$B$9,$J$3:$XFD$3,)+2)),\"\",IFERROR(INDEX($J$6:$XFD$85,C50,MATCH('Anrechnung erbrachter Leistung'!$B$9,$J$3:$XFD$3,)+2),\"\")),\"\")","v":""},null,null,45,"MB.1.0114.0.M","Steuerungstechnik",5,null,null,null,null,null,null,null,null,null,"MB.1.0120.0.M","Strömungssimulation",5]
[null,null,46,{"$f":"IFERROR(IF(INDEX($J$6:$XFD$85,C51,MATCH('Anrechnung erbrachter Leistung'!$B$9,$J$3:$XFD$3,)+1)=0,\"\",IFERROR(INDEX($J$6:$XFD$85,C51,MATCH('Anrechnung erbrachter Leistung'!$B$9,$J$3:$XFD$3,)+1),\"\")),\"\")","v":""},{"$f":"IFERROR(IF(INDEX($J$6:$XFD$85,C51,MATCH('Anrechnung erbrachter Leistung'!$B$9,$J$3:$XFD$3,)+0)=0,\"\",IFERROR(INDEX($J$6:$XFD$85,C51,MATCH('Anrechnung erbrachter Leistung'!$B$9,$J$3:$XFD$3,)+0),\"\")),\"\")","v":""},{"$f":"IFERROR(IF(ISBLANK(INDEX($J$6:$XFD$85,C51,MATCH('Anrechnung erbrachter Leistung'!$B$9,$J$3:$XFD$3,)+2)),\"\",IFERROR(INDEX($J$6:$XFD$85,C51,MATCH('Anrechnung erbrachter Leistung'!$B$9,$J$3:$XFD$3,)+2),\"\")),\"\")","v":""},null,null,46,"MB.1.0116.0.M","Strömungslehre",5,null,null,null,null,null,null,null,null,null,"ITB.1.0106.0.M","Technisches Englisch",5]
[null,null,47,{"$f":"IFERROR(IF(INDEX($J$6:$XFD$85,C52,MATCH('Anrechnung erbrachter Leistung'!$B$9,$J$3:$XFD$3,)+1)=0,\"\",IFERROR(INDEX($J$6:$XFD$85,C52,MATCH('Anrechnung erbrachter Leistung'!$B$9,$J$3:$XFD$3,)+1),\"\")),\"\")","v":""},{"$f":"IFERROR(IF(INDEX($J$6:$XFD$85,C52,MATCH('Anrechnung erbrachter Leistung'!$B$9,$J$3:$XFD$3,)+0)=0,\"\",IFERROR(INDEX($J$6:$XFD$85,C52,MATCH('Anrechnung erbrachter Leistung'!$B$9,$J$3:$XFD$3,)+0),\"\")),\"\")","v":""},{"$f":"IFERROR(IF(ISBLANK(INDEX($J$6:$XFD$85,C52,MATCH('Anrechnung erbrachter Leistung'!$B$9,$J$3:$XFD$3,)+2)),\"\",IFERROR(INDEX($J$6:$XFD$85,C52,MATCH('Anrechnung erbrachter Leistung'!$B$9,$J$3:$XFD$3,)+2),\"\")),\"\")","v":""},null,null,47,"MB.1.0204.0.M","Strömungsmaschinen u. CFD",5,null,null,null,null,null,null,null,null,null,"MB.1.0185.0.M","Technisches Projekt",5]
[null,null,48,{"$f":"IFERROR(IF(INDEX($J$6:$XFD$85,C53,MATCH('Anrechnung erbrachter Leistung'!$B$9,$J$3:$XFD$3,)+1)=0,\"\",IFERROR(INDEX($J$6:$XFD$85,C53,MATCH('Anrechnung erbrachter Leistung'!$B$9,$J$3:$XFD$3,)+1),\"\")),\"\")","v":""},{"$f":"IFERROR(IF(INDEX($J$6:$XFD$85,C53,MATCH('Anrechnung erbrachter Leistung'!$B$9,$J$3:$XFD$3,)+0)=0,\"\",IFERROR(INDEX($J$6:$XFD$85,C53,MATCH('Anrechnung erbrachter Leistung'!$B$9,$J$3:$XFD$3,)+0),\"\")),\"\")","v":""},{"$f":"IFERROR(IF(ISBLANK(INDEX($J$6:$XFD$85,C53,MATCH('Anrechnung erbrachter Leistung'!$B$9,$J$3:$XFD$3,)+2)),\"\",IFERROR(INDEX($J$6:$XFD$85,C53,MATCH('Anrechnung erbrachter Leistung'!$B$9,$J$3:$XFD$3,)+2),\"\")),\"\")","v":""},null,null,48,"MB.1.0120.0.M","Strömungssimulation",5,null,null,null,null,null,null,null,null,null,"MB.1.0129.0.M","Thermodynamik",5]
[null,null,49,{"$f":"IFERROR(IF(INDEX($J$6:$XFD$85,C54,MATCH('Anrechnung erbrachter Leistung'!$B$9,$J$3:$XFD$3,)+1)=0,\"\",IFERROR(INDEX($J$6:$XFD$85,C54,MATCH('Anrechnung erbrachter Leistung'!$B$9,$J$3:$XFD$3,)+1),\"\")),\"\")","v":""},{"$f":"IFERROR(IF(INDEX($J$6:$XFD$85,C54,MATCH('Anrechnung erbrachter Leistung'!$B$9,$J$3:$XFD$3,)+0)=0,\"\",IFERROR(INDEX($J$6:$XFD$85,C54,MATCH('Anrechnung erbrachter Leistung'!$B$9,$J$3:$XFD$3,)+0),\"\")),\"\")","v":""},{"$f":"IFERROR(IF(ISBLANK(INDEX($J$6:$XFD$85,C54,MATCH('Anrechnung erbrachter Leistung'!$B$9,$J$3:$XFD$3,)+2)),\"\",IFERROR(INDEX($J$6:$XFD$85,C54,MATCH('Anrechnung erbrachter Leistung'!$B$9,$J$3:$XFD$3,)+2),\"\")),\"\")","v":""},null,null,49,"ITB.1.0106.0.M","Technisches Englisch",5,null,null,null,null,null,null,null,null,null,"MB.1.0205.0.M","Verbrennungskraftmaschinen",5]
[null,null,50,{"$f":"IFERROR(IF(INDEX($J$6:$XFD$85,C55,MATCH('Anrechnung erbrachter Leistung'!$B$9,$J$3:$XFD$3,)+1)=0,\"\",IFERROR(INDEX($J$6:$XFD$85,C55,MATCH('Anrechnung erbrachter Leistung'!$B$9,$J$3:$XFD$3,)+1),\"\")),\"\")","v":""},{"$f":"IFERROR(IF(INDEX($J$6:$XFD$85,C55,MATCH('Anrechnung erbrachter Leistung'!$B$9,$J$3:$XFD$3,)+0)=0,\"\",IFERROR(INDEX($J$6:$XFD$85,C55,MATCH('Anrechnung erbrachter Leistung'!$B$9,$J$3:$XFD$3,)+0),\"\")),\"\")","v":""},{"$f":"IFERROR(IF(ISBLANK(INDEX($J$6:$XFD$85,C55,MATCH('Anrechnung erbrachter Leistung'!$B$9,$J$3:$XFD$3,)+2)),\"\",IFERROR(INDEX($J$6:$XFD$85,C55,MATCH('Anrechnung erbrachter Leistung'!$B$9,$J$3:$XFD$3,)+2),\"\")),\"\")","v":""},null,null,50,"MB.1.0185.0.M","Technisches Projekt",5,null,null,null,null,null,null,null,null,null,"MB.1.0134.0.M","Verfahrenstechnik 1",5]
[null,null,51,{"$f":"IFERROR(IF(INDEX($J$6:$XFD$85,C56,MATCH('Anrechnung erbrachter Leistung'!$B$9,$J$3:$XFD$3,)+1)=0,\"\",IFERROR(INDEX($J$6:$XFD$85,C56,MATCH('Anrechnung erbrachter Leistung'!$B$9,$J$3:$XFD$3,)+1),\"\")),\"\")","v":""},{"$f":"IFERROR(IF(INDEX($J$6:$XFD$85,C56,MATCH('Anrechnung erbrachter Leistung'!$B$9,$J$3:$XFD$3,)+0)=0,\"\",IFERROR(INDEX($J$6:$XFD$85,C56,MATCH('Anrechnung erbrachter Leistung'!$B$9,$J$3:$XFD$3,)+0),\"\")),\"\")","v":""},{"$f":"IFERROR(IF(ISBLANK(INDEX($J$6:$XFD$85,C56,MATCH('Anrechnung erbrachter Leistung'!$B$9,$J$3:$XFD$3,)+2)),\"\",IFERROR(INDEX($J$6:$XFD$85,C56,MATCH('Anrechnung erbrachter Leistung'!$B$9,$J$3:$XFD$3,)+2),\"\")),\"\")","v":""},null,null,51,"MB.1.0129.0.M","Thermodynamik",5,null,null,null,null,null,null,null,null,null,"MB.1.0136.0.M","Verfahrenstechnik 2",5]
[null,null,52,{"$f":"IFERROR(IF(INDEX($J$6:$XFD$85,C57,MATCH('Anrechnung erbrachter Leistung'!$B$9,$J$3:$XFD$3,)+1)=0,\"\",IFERROR(INDEX($J$6:$XFD$85,C57,MATCH('Anrechnung erbrachter Leistung'!$B$9,$J$3:$XFD$3,)+1),\"\")),\"\")","v":""},{"$f":"IFERROR(IF(INDEX($J$6:$XFD$85,C57,MATCH('Anrechnung erbrachter Leistung'!$B$9,$J$3:$XFD$3,)+0)=0,\"\",IFERROR(INDEX($J$6:$XFD$85,C57,MATCH('Anrechnung erbrachter Leistung'!$B$9,$J$3:$XFD$3,)+0),\"\")),\"\")","v":""},{"$f":"IFERROR(IF(ISBLANK(INDEX($J$6:$XFD$85,C57,MATCH('Anrechnung erbrachter Leistung'!$B$9,$J$3:$XFD$3,)+2)),\"\",IFERROR(INDEX($J$6:$XFD$85,C57,MATCH('Anrechnung erbrachter Leistung'!$B$9,$J$3:$XFD$3,)+2),\"\")),\"\")","v":""},null,null,52,"MB.1.0205.0.M","Verbrennungskraftmaschinen",5,null,null,null,null,null,null,null,null,null,"MB.1.0201.0.M","Virtual Reality in der Fabrikplanung",5]
[null,null,53,{"$f":"IFERROR(IF(INDEX($J$6:$XFD$85,C58,MATCH('Anrechnung erbrachter Leistung'!$B$9,$J$3:$XFD$3,)+1)=0,\"\",IFERROR(INDEX($J$6:$XFD$85,C58,MATCH('Anrechnung erbrachter Leistung'!$B$9,$J$3:$XFD$3,)+1),\"\")),\"\")","v":""},{"$f":"IFERROR(IF(INDEX($J$6:$XFD$85,C58,MATCH('Anrechnung erbrachter Leistung'!$B$9,$J$3:$XFD$3,)+0)=0,\"\",IFERROR(INDEX($J$6:$XFD$85,C58,MATCH('Anrechnung erbrachter Leistung'!$B$9,$J$3:$XFD$3,)+0),\"\")),\"\")","v":""},{"$f":"IFERROR(IF(ISBLANK(INDEX($J$6:$XFD$85,C58,MATCH('Anrechnung erbrachter Leistung'!$B$9,$J$3:$XFD$3,)+2)),\"\",IFERROR(INDEX($J$6:$XFD$85,C58,MATCH('Anrechnung erbrachter Leistung'!$B$9,$J$3:$XFD$3,)+2),\"\")),\"\")","v":""},null,null,53,"MB.1.0134.0.M","Verfahrenstechnik 1",5,null,null,null,null,null,null,null,null,null,"MB.1.0140.0.M","Wärme- und Stoffübertragung",5]
[null,null,54,{"$f":"IFERROR(IF(INDEX($J$6:$XFD$85,C59,MATCH('Anrechnung erbrachter Leistung'!$B$9,$J$3:$XFD$3,)+1)=0,\"\",IFERROR(INDEX($J$6:$XFD$85,C59,MATCH('Anrechnung erbrachter Leistung'!$B$9,$J$3:$XFD$3,)+1),\"\")),\"\")","v":""},{"$f":"IFERROR(IF(INDEX($J$6:$XFD$85,C59,MATCH('Anrechnung erbrachter Leistung'!$B$9,$J$3:$XFD$3,)+0)=0,\"\",IFERROR(INDEX($J$6:$XFD$85,C59,MATCH('Anrechnung erbrachter Leistung'!$B$9,$J$3:$XFD$3,)+0),\"\")),\"\")","v":""},{"$f":"IFERROR(IF(ISBLANK(INDEX($J$6:$XFD$85,C59,MATCH('Anrechnung erbrachter Leistung'!$B$9,$J$3:$XFD$3,)+2)),\"\",IFERROR(INDEX($J$6:$XFD$85,C59,MATCH('Anrechnung erbrachter Leistung'!$B$9,$J$3:$XFD$3,)+2),\"\")),\"\")","v":""},null,null,54,"MB.1.0136.0.M","Verfahrenstechnik 2",5,null,null,null,null,null,null,null,null,null,"MB.1.0143.0.M","Werkstofftechnik 1",5]
[null,null,55,{"$f":"IFERROR(IF(INDEX($J$6:$XFD$85,C60,MATCH('Anrechnung erbrachter Leistung'!$B$9,$J$3:$XFD$3,)+1)=0,\"\",IFERROR(INDEX($J$6:$XFD$85,C60,MATCH('Anrechnung erbrachter Leistung'!$B$9,$J$3:$XFD$3,)+1),\"\")),\"\")","v":""},{"$f":"IFERROR(IF(INDEX($J$6:$XFD$85,C60,MATCH('Anrechnung erbrachter Leistung'!$B$9,$J$3:$XFD$3,)+0)=0,\"\",IFERROR(INDEX($J$6:$XFD$85,C60,MATCH('Anrechnung erbrachter Leistung'!$B$9,$J$3:$XFD$3,)+0),\"\")),\"\")","v":""},{"$f":"IFERROR(IF(ISBLANK(INDEX($J$6:$XFD$85,C60,MATCH('Anrechnung erbrachter Leistung'!$B$9,$J$3:$XFD$3,)+2)),\"\",IFERROR(INDEX($J$6:$XFD$85,C60,MATCH('Anrechnung erbrachter Leistung'!$B$9,$J$3:$XFD$3,)+2),\"\")),\"\")","v":""},null,null,55,"MB.1.0201.0.M","Virtual Reality in der Fabrikplanung",5,null,null,null,null,null,null,null,null,null,"MB.1.0144.0.M","Werkstofftechnik 2",5]
[null,null,56,{"$f":"IFERROR(IF(INDEX($J$6:$XFD$85,C61,MATCH('Anrechnung erbrachter Leistung'!$B$9,$J$3:$XFD$3,)+1)=0,\"\",IFERROR(INDEX($J$6:$XFD$85,C61,MATCH('Anrechnung erbrachter Leistung'!$B$9,$J$3:$XFD$3,)+1),\"\")),\"\")","v":""},{"$f":"IFERROR(IF(INDEX($J$6:$XFD$85,C61,MATCH('Anrechnung erbrachter Leistung'!$B$9,$J$3:$XFD$3,)+0)=0,\"\",IFERROR(INDEX($J$6:$XFD$85,C61,MATCH('Anrechnung erbrachter Leistung'!$B$9,$J$3:$XFD$3,)+0),\"\")),\"\")","v":""},{"$f":"IFERROR(IF(ISBLANK(INDEX($J$6:$XFD$85,C61,MATCH('Anrechnung erbrachter Leistung'!$B$9,$J$3:$XFD$3,)+2)),\"\",IFERROR(INDEX($J$6:$XFD$85,C61,MATCH('Anrechnung erbrachter Leistung'!$B$9,$J$3:$XFD$3,)+2),\"\")),\"\")","v":""},null,null,56,"MB.1.0140.0.M","Wärme- und Stoffübertragung",5]
[null,null,57,{"$f":"IFERROR(IF(INDEX($J$6:$XFD$85,C62,MATCH('Anrechnung erbrachter Leistung'!$B$9,$J$3:$XFD$3,)+1)=0,\"\",IFERROR(INDEX($J$6:$XFD$85,C62,MATCH('Anrechnung erbrachter Leistung'!$B$9,$J$3:$XFD$3,)+1),\"\")),\"\")","v":""},{"$f":"IFERROR(IF(INDEX($J$6:$XFD$85,C62,MATCH('Anrechnung erbrachter Leistung'!$B$9,$J$3:$XFD$3,)+0)=0,\"\",IFERROR(INDEX($J$6:$XFD$85,C62,MATCH('Anrechnung erbrachter Leistung'!$B$9,$J$3:$XFD$3,)+0),\"\")),\"\")","v":""},{"$f":"IFERROR(IF(ISBLANK(INDEX($J$6:$XFD$85,C62,MATCH('Anrechnung erbrachter Leistung'!$B$9,$J$3:$XFD$3,)+2)),\"\",IFERROR(INDEX($J$6:$XFD$85,C62,MATCH('Anrechnung erbrachter Leistung'!$B$9,$J$3:$XFD$3,)+2),\"\")),\"\")","v":""},null,null,57,"MB.1.0143.0.M","Werkstofftechnik 1",5]
[null,null,58,{"$f":"IFERROR(IF(INDEX($J$6:$XFD$85,C63,MATCH('Anrechnung erbrachter Leistung'!$B$9,$J$3:$XFD$3,)+1)=0,\"\",IFERROR(INDEX($J$6:$XFD$85,C63,MATCH('Anrechnung erbrachter Leistung'!$B$9,$J$3:$XFD$3,)+1),\"\")),\"\")","v":""},{"$f":"IFERROR(IF(INDEX($J$6:$XFD$85,C63,MATCH('Anrechnung erbrachter Leistung'!$B$9,$J$3:$XFD$3,)+0)=0,\"\",IFERROR(INDEX($J$6:$XFD$85,C63,MATCH('Anrechnung erbrachter Leistung'!$B$9,$J$3:$XFD$3,)+0),\"\")),\"\")","v":""},{"$f":"IFERROR(IF(ISBLANK(INDEX($J$6:$XFD$85,C63,MATCH('Anrechnung erbrachter Leistung'!$B$9,$J$3:$XFD$3,)+2)),\"\",IFERROR(INDEX($J$6:$XFD$85,C63,MATCH('Anrechnung erbrachter Leistung'!$B$9,$J$3:$XFD$3,)+2),\"\")),\"\")","v":""},null,null,58,"MB.1.0144.0.M","Werkstofftechnik 2",5]
[null,null,59,{"$f":"IFERROR(IF(INDEX($J$6:$XFD$85,C64,MATCH('Anrechnung erbrachter Leistung'!$B$9,$J$3:$XFD$3,)+1)=0,\"\",IFERROR(INDEX($J$6:$XFD$85,C64,MATCH('Anrechnung erbrachter Leistung'!$B$9,$J$3:$XFD$3,)+1),\"\")),\"\")","v":""},{"$f":"IFERROR(IF(INDEX($J$6:$XFD$85,C64,MATCH('Anrechnung erbrachter Leistung'!$B$9,$J$3:$XFD$3,)+0)=0,\"\",IFERROR(INDEX($J$6:$XFD$85,C64,MATCH('Anrechnung erbrachter Leistung'!$B$9,$J$3:$XFD$3,)+0),\"\")),\"\")","v":""},{"$f":"IFERROR(IF(ISBLANK(INDEX($J$6:$XFD$85,C64,MATCH('Anrechnung erbrachter Leistung'!$B$9,$J$3:$XFD$3,)+2)),\"\",IFERROR(INDEX($J$6:$XFD$85,C64,MATCH('Anrechnung erbrachter Leistung'!$B$9,$J$3:$XFD$3,)+2),\"\")),\"\")","v":""},null,null,59]
[null,null,60,{"$f":"IFERROR(IF(INDEX($J$6:$XFD$85,C65,MATCH('Anrechnung erbrachter Leistung'!$B$9,$J$3:$XFD$3,)+1)=0,\"\",IFERROR(INDEX($J$6:$XFD$85,C65,MATCH('Anrechnung erbrachter Leistung'!$B$9,$J$3:$XFD$3,)+1),\"\")),\"\")","v":""},{"$f":"IFERROR(IF(INDEX($J$6:$XFD$85,C65,MATCH('Anrechnung erbrachter Leistung'!$B$9,$J$3:$XFD$3,)+0)=0,\"\",IFERROR(INDEX($J$6:$XFD$85,C65,MATCH('Anrechnung erbrachter Leistung'!$B$9,$J$3:$XFD$3,)+0),\"\")),\"\")","v":""},{"$f":"IFERROR(IF(ISBLANK(INDEX($J$6:$XFD$85,C65,MATCH('Anrechnung erbrachter Leistung'!$B$9,$J$3:$XFD$3,)+2)),\"\",IFERROR(INDEX($J$6:$XFD$85,C65,MATCH('Anrechnung erbrachter Leistung'!$B$9,$J$3:$XFD$3,)+2),\"\")),\"\")","v":""},null,null,60]
[null,null,61,{"$f":"IFERROR(IF(INDEX($J$6:$XFD$85,C66,MATCH('Anrechnung erbrachter Leistung'!$B$9,$J$3:$XFD$3,)+1)=0,\"\",IFERROR(INDEX($J$6:$XFD$85,C66,MATCH('Anrechnung erbrachter Leistung'!$B$9,$J$3:$XFD$3,)+1),\"\")),\"\")","v":""},{"$f":"IFERROR(IF(INDEX($J$6:$XFD$85,C66,MATCH('Anrechnung erbrachter Leistung'!$B$9,$J$3:$XFD$3,)+0)=0,\"\",IFERROR(INDEX($J$6:$XFD$85,C66,MATCH('Anrechnung erbrachter Leistung'!$B$9,$J$3:$XFD$3,)+0),\"\")),\"\")","v":""},{"$f":"IFERROR(IF(ISBLANK(INDEX($J$6:$XFD$85,C66,MATCH('Anrechnung erbrachter Leistung'!$B$9,$J$3:$XFD$3,)+2)),\"\",IFERROR(INDEX($J$6:$XFD$85,C66,MATCH('Anrechnung erbrachter Leistung'!$B$9,$J$3:$XFD$3,)+2),\"\")),\"\")","v":""},null,null,61]
[null,null,62,{"$f":"IFERROR(IF(INDEX($J$6:$XFD$85,C67,MATCH('Anrechnung erbrachter Leistung'!$B$9,$J$3:$XFD$3,)+1)=0,\"\",IFERROR(INDEX($J$6:$XFD$85,C67,MATCH('Anrechnung erbrachter Leistung'!$B$9,$J$3:$XFD$3,)+1),\"\")),\"\")","v":""},{"$f":"IFERROR(IF(INDEX($J$6:$XFD$85,C67,MATCH('Anrechnung erbrachter Leistung'!$B$9,$J$3:$XFD$3,)+0)=0,\"\",IFERROR(INDEX($J$6:$XFD$85,C67,MATCH('Anrechnung erbrachter Leistung'!$B$9,$J$3:$XFD$3,)+0),\"\")),\"\")","v":""},{"$f":"IFERROR(IF(ISBLANK(INDEX($J$6:$XFD$85,C67,MATCH('Anrechnung erbrachter Leistung'!$B$9,$J$3:$XFD$3,)+2)),\"\",IFERROR(INDEX($J$6:$XFD$85,C67,MATCH('Anrechnung erbrachter Leistung'!$B$9,$J$3:$XFD$3,)+2),\"\")),\"\")","v":""},null,null,62]
[null,null,63,{"$f":"IFERROR(IF(INDEX($J$6:$XFD$85,C68,MATCH('Anrechnung erbrachter Leistung'!$B$9,$J$3:$XFD$3,)+1)=0,\"\",IFERROR(INDEX($J$6:$XFD$85,C68,MATCH('Anrechnung erbrachter Leistung'!$B$9,$J$3:$XFD$3,)+1),\"\")),\"\")","v":""},{"$f":"IFERROR(IF(INDEX($J$6:$XFD$85,C68,MATCH('Anrechnung erbrachter Leistung'!$B$9,$J$3:$XFD$3,)+0)=0,\"\",IFERROR(INDEX($J$6:$XFD$85,C68,MATCH('Anrechnung erbrachter Leistung'!$B$9,$J$3:$XFD$3,)+0),\"\")),\"\")","v":""},{"$f":"IFERROR(IF(ISBLANK(INDEX($J$6:$XFD$85,C68,MATCH('Anrechnung erbrachter Leistung'!$B$9,$J$3:$XFD$3,)+2)),\"\",IFERROR(INDEX($J$6:$XFD$85,C68,MATCH('Anrechnung erbrachter Leistung'!$B$9,$J$3:$XFD$3,)+2),\"\")),\"\")","v":""},null,null,63]
[null,null,64,{"$f":"IFERROR(IF(INDEX($J$6:$XFD$85,C69,MATCH('Anrechnung erbrachter Leistung'!$B$9,$J$3:$XFD$3,)+1)=0,\"\",IFERROR(INDEX($J$6:$XFD$85,C69,MATCH('Anrechnung erbrachter Leistung'!$B$9,$J$3:$XFD$3,)+1),\"\")),\"\")","v":""},{"$f":"IFERROR(IF(INDEX($J$6:$XFD$85,C69,MATCH('Anrechnung erbrachter Leistung'!$B$9,$J$3:$XFD$3,)+0)=0,\"\",IFERROR(INDEX($J$6:$XFD$85,C69,MATCH('Anrechnung erbrachter Leistung'!$B$9,$J$3:$XFD$3,)+0),\"\")),\"\")","v":""},{"$f":"IFERROR(IF(ISBLANK(INDEX($J$6:$XFD$85,C69,MATCH('Anrechnung erbrachter Leistung'!$B$9,$J$3:$XFD$3,)+2)),\"\",IFERROR(INDEX($J$6:$XFD$85,C69,MATCH('Anrechnung erbrachter Leistung'!$B$9,$J$3:$XFD$3,)+2),\"\")),\"\")","v":""},null,null,64]
[null,null,65,{"$f":"IFERROR(IF(INDEX($J$6:$XFD$85,C70,MATCH('Anrechnung erbrachter Leistung'!$B$9,$J$3:$XFD$3,)+1)=0,\"\",IFERROR(INDEX($J$6:$XFD$85,C70,MATCH('Anrechnung erbrachter Leistung'!$B$9,$J$3:$XFD$3,)+1),\"\")),\"\")","v":""},{"$f":"IFERROR(IF(INDEX($J$6:$XFD$85,C70,MATCH('Anrechnung erbrachter Leistung'!$B$9,$J$3:$XFD$3,)+0)=0,\"\",IFERROR(INDEX($J$6:$XFD$85,C70,MATCH('Anrechnung erbrachter Leistung'!$B$9,$J$3:$XFD$3,)+0),\"\")),\"\")","v":""},{"$f":"IFERROR(IF(ISBLANK(INDEX($J$6:$XFD$85,C70,MATCH('Anrechnung erbrachter Leistung'!$B$9,$J$3:$XFD$3,)+2)),\"\",IFERROR(INDEX($J$6:$XFD$85,C70,MATCH('Anrechnung erbrachter Leistung'!$B$9,$J$3:$XFD$3,)+2),\"\")),\"\")","v":""},null,null,65]
[null,null,66,{"$f":"IFERROR(IF(INDEX($J$6:$XFD$85,C71,MATCH('Anrechnung erbrachter Leistung'!$B$9,$J$3:$XFD$3,)+1)=0,\"\",IFERROR(INDEX($J$6:$XFD$85,C71,MATCH('Anrechnung erbrachter Leistung'!$B$9,$J$3:$XFD$3,)+1),\"\")),\"\")","v":""},{"$f":"IFERROR(IF(INDEX($J$6:$XFD$85,C71,MATCH('Anrechnung erbrachter Leistung'!$B$9,$J$3:$XFD$3,)+0)=0,\"\",IFERROR(INDEX($J$6:$XFD$85,C71,MATCH('Anrechnung erbrachter Leistung'!$B$9,$J$3:$XFD$3,)+0),\"\")),\"\")","v":""},{"$f":"IFERROR(IF(ISBLANK(INDEX($J$6:$XFD$85,C71,MATCH('Anrechnung erbrachter Leistung'!$B$9,$J$3:$XFD$3,)+2)),\"\",IFERROR(INDEX($J$6:$XFD$85,C71,MATCH('Anrechnung erbrachter Leistung'!$B$9,$J$3:$XFD$3,)+2),\"\")),\"\")","v":""},null,null,66]
[null,null,67,{"$f":"IFERROR(IF(INDEX($J$6:$XFD$85,C72,MATCH('Anrechnung erbrachter Leistung'!$B$9,$J$3:$XFD$3,)+1)=0,\"\",IFERROR(INDEX($J$6:$XFD$85,C72,MATCH('Anrechnung erbrachter Leistung'!$B$9,$J$3:$XFD$3,)+1),\"\")),\"\")","v":""},{"$f":"IFERROR(IF(INDEX($J$6:$XFD$85,C72,MATCH('Anrechnung erbrachter Leistung'!$B$9,$J$3:$XFD$3,)+0)=0,\"\",IFERROR(INDEX($J$6:$XFD$85,C72,MATCH('Anrechnung erbrachter Leistung'!$B$9,$J$3:$XFD$3,)+0),\"\")),\"\")","v":""},{"$f":"IFERROR(IF(ISBLANK(INDEX($J$6:$XFD$85,C72,MATCH('Anrechnung erbrachter Leistung'!$B$9,$J$3:$XFD$3,)+2)),\"\",IFERROR(INDEX($J$6:$XFD$85,C72,MATCH('Anrechnung erbrachter Leistung'!$B$9,$J$3:$XFD$3,)+2),\"\")),\"\")","v":""},null,null,67]
[null,null,68,{"$f":"IFERROR(IF(INDEX($J$6:$XFD$85,C73,MATCH('Anrechnung erbrachter Leistung'!$B$9,$J$3:$XFD$3,)+1)=0,\"\",IFERROR(INDEX($J$6:$XFD$85,C73,MATCH('Anrechnung erbrachter Leistung'!$B$9,$J$3:$XFD$3,)+1),\"\")),\"\")","v":""},{"$f":"IFERROR(IF(INDEX($J$6:$XFD$85,C73,MATCH('Anrechnung erbrachter Leistung'!$B$9,$J$3:$XFD$3,)+0)=0,\"\",IFERROR(INDEX($J$6:$XFD$85,C73,MATCH('Anrechnung erbrachter Leistung'!$B$9,$J$3:$XFD$3,)+0),\"\")),\"\")","v":""},{"$f":"IFERROR(IF(ISBLANK(INDEX($J$6:$XFD$85,C73,MATCH('Anrechnung erbrachter Leistung'!$B$9,$J$3:$XFD$3,)+2)),\"\",IFERROR(INDEX($J$6:$XFD$85,C73,MATCH('Anrechnung erbrachter Leistung'!$B$9,$J$3:$XFD$3,)+2),\"\")),\"\")","v":""},null,null,68]
[null,null,69,{"$f":"IFERROR(IF(INDEX($J$6:$XFD$85,C74,MATCH('Anrechnung erbrachter Leistung'!$B$9,$J$3:$XFD$3,)+1)=0,\"\",IFERROR(INDEX($J$6:$XFD$85,C74,MATCH('Anrechnung erbrachter Leistung'!$B$9,$J$3:$XFD$3,)+1),\"\")),\"\")","v":""},{"$f":"IFERROR(IF(INDEX($J$6:$XFD$85,C74,MATCH('Anrechnung erbrachter Leistung'!$B$9,$J$3:$XFD$3,)+0)=0,\"\",IFERROR(INDEX($J$6:$XFD$85,C74,MATCH('Anrechnung erbrachter Leistung'!$B$9,$J$3:$XFD$3,)+0),\"\")),\"\")","v":""},{"$f":"IFERROR(IF(ISBLANK(INDEX($J$6:$XFD$85,C74,MATCH('Anrechnung erbrachter Leistung'!$B$9,$J$3:$XFD$3,)+2)),\"\",IFERROR(INDEX($J$6:$XFD$85,C74,MATCH('Anrechnung erbrachter Leistung'!$B$9,$J$3:$XFD$3,)+2),\"\")),\"\")","v":""},null,null,69]
[null,null,70,{"$f":"IFERROR(IF(INDEX($J$6:$XFD$85,C75,MATCH('Anrechnung erbrachter Leistung'!$B$9,$J$3:$XFD$3,)+1)=0,\"\",IFERROR(INDEX($J$6:$XFD$85,C75,MATCH('Anrechnung erbrachter Leistung'!$B$9,$J$3:$XFD$3,)+1),\"\")),\"\")","v":""},{"$f":"IFERROR(IF(INDEX($J$6:$XFD$85,C75,MATCH('Anrechnung erbrachter Leistung'!$B$9,$J$3:$XFD$3,)+0)=0,\"\",IFERROR(INDEX($J$6:$XFD$85,C75,MATCH('Anrechnung erbrachter Leistung'!$B$9,$J$3:$XFD$3,)+0),\"\")),\"\")","v":""},{"$f":"IFERROR(IF(ISBLANK(INDEX($J$6:$XFD$85,C75,MATCH('Anrechnung erbrachter Leistung'!$B$9,$J$3:$XFD$3,)+2)),\"\",IFERROR(INDEX($J$6:$XFD$85,C75,MATCH('Anrechnung erbrachter Leistung'!$B$9,$J$3:$XFD$3,)+2),\"\")),\"\")","v":""},null,null,70]
[null,null,71,{"$f":"IFERROR(IF(INDEX($J$6:$XFD$85,C76,MATCH('Anrechnung erbrachter Leistung'!$B$9,$J$3:$XFD$3,)+1)=0,\"\",IFERROR(INDEX($J$6:$XFD$85,C76,MATCH('Anrechnung erbrachter Leistung'!$B$9,$J$3:$XFD$3,)+1),\"\")),\"\")","v":""},{"$f":"IFERROR(IF(INDEX($J$6:$XFD$85,C76,MATCH('Anrechnung erbrachter Leistung'!$B$9,$J$3:$XFD$3,)+0)=0,\"\",IFERROR(INDEX($J$6:$XFD$85,C76,MATCH('Anrechnung erbrachter Leistung'!$B$9,$J$3:$XFD$3,)+0),\"\")),\"\")","v":""},{"$f":"IFERROR(IF(ISBLANK(INDEX($J$6:$XFD$85,C76,MATCH('Anrechnung erbrachter Leistung'!$B$9,$J$3:$XFD$3,)+2)),\"\",IFERROR(INDEX($J$6:$XFD$85,C76,MATCH('Anrechnung erbrachter Leistung'!$B$9,$J$3:$XFD$3,)+2),\"\")),\"\")","v":""},null,null,71]
[null,null,72,{"$f":"IFERROR(IF(INDEX($J$6:$XFD$85,C77,MATCH('Anrechnung erbrachter Leistung'!$B$9,$J$3:$XFD$3,)+1)=0,\"\",IFERROR(INDEX($J$6:$XFD$85,C77,MATCH('Anrechnung erbrachter Leistung'!$B$9,$J$3:$XFD$3,)+1),\"\")),\"\")","v":""},{"$f":"IFERROR(IF(INDEX($J$6:$XFD$85,C77,MATCH('Anrechnung erbrachter Leistung'!$B$9,$J$3:$XFD$3,)+0)=0,\"\",IFERROR(INDEX($J$6:$XFD$85,C77,MATCH('Anrechnung erbrachter Leistung'!$B$9,$J$3:$XFD$3,)+0),\"\")),\"\")","v":""},{"$f":"IFERROR(IF(ISBLANK(INDEX($J$6:$XFD$85,C77,MATCH('Anrechnung erbrachter Leistung'!$B$9,$J$3:$XFD$3,)+2)),\"\",IFERROR(INDEX($J$6:$XFD$85,C77,MATCH('Anrechnung erbrachter Leistung'!$B$9,$J$3:$XFD$3,)+2),\"\")),\"\")","v":""},null,null,72]
[null,null,73,{"$f":"IFERROR(IF(INDEX($J$6:$XFD$85,C78,MATCH('Anrechnung erbrachter Leistung'!$B$9,$J$3:$XFD$3,)+1)=0,\"\",IFERROR(INDEX($J$6:$XFD$85,C78,MATCH('Anrechnung erbrachter Leistung'!$B$9,$J$3:$XFD$3,)+1),\"\")),\"\")","v":""},{"$f":"IFERROR(IF(INDEX($J$6:$XFD$85,C78,MATCH('Anrechnung erbrachter Leistung'!$B$9,$J$3:$XFD$3,)+0)=0,\"\",IFERROR(INDEX($J$6:$XFD$85,C78,MATCH('Anrechnung erbrachter Leistung'!$B$9,$J$3:$XFD$3,)+0),\"\")),\"\")","v":""},{"$f":"IFERROR(IF(ISBLANK(INDEX($J$6:$XFD$85,C78,MATCH('Anrechnung erbrachter Leistung'!$B$9,$J$3:$XFD$3,)+2)),\"\",IFERROR(INDEX($J$6:$XFD$85,C78,MATCH('Anrechnung erbrachter Leistung'!$B$9,$J$3:$XFD$3,)+2),\"\")),\"\")","v":""},null,null,73]
[null,null,74,{"$f":"IFERROR(IF(INDEX($J$6:$XFD$85,C79,MATCH('Anrechnung erbrachter Leistung'!$B$9,$J$3:$XFD$3,)+1)=0,\"\",IFERROR(INDEX($J$6:$XFD$85,C79,MATCH('Anrechnung erbrachter Leistung'!$B$9,$J$3:$XFD$3,)+1),\"\")),\"\")","v":""},{"$f":"IFERROR(IF(INDEX($J$6:$XFD$85,C79,MATCH('Anrechnung erbrachter Leistung'!$B$9,$J$3:$XFD$3,)+0)=0,\"\",IFERROR(INDEX($J$6:$XFD$85,C79,MATCH('Anrechnung erbrachter Leistung'!$B$9,$J$3:$XFD$3,)+0),\"\")),\"\")","v":""},{"$f":"IFERROR(IF(ISBLANK(INDEX($J$6:$XFD$85,C79,MATCH('Anrechnung erbrachter Leistung'!$B$9,$J$3:$XFD$3,)+2)),\"\",IFERROR(INDEX($J$6:$XFD$85,C79,MATCH('Anrechnung erbrachter Leistung'!$B$9,$J$3:$XFD$3,)+2),\"\")),\"\")","v":""},null,null,74]
[null,null,75,{"$f":"IFERROR(IF(INDEX($J$6:$XFD$85,C80,MATCH('Anrechnung erbrachter Leistung'!$B$9,$J$3:$XFD$3,)+1)=0,\"\",IFERROR(INDEX($J$6:$XFD$85,C80,MATCH('Anrechnung erbrachter Leistung'!$B$9,$J$3:$XFD$3,)+1),\"\")),\"\")","v":""},{"$f":"IFERROR(IF(INDEX($J$6:$XFD$85,C80,MATCH('Anrechnung erbrachter Leistung'!$B$9,$J$3:$XFD$3,)+0)=0,\"\",IFERROR(INDEX($J$6:$XFD$85,C80,MATCH('Anrechnung erbrachter Leistung'!$B$9,$J$3:$XFD$3,)+0),\"\")),\"\")","v":""},{"$f":"IFERROR(IF(ISBLANK(INDEX($J$6:$XFD$85,C80,MATCH('Anrechnung erbrachter Leistung'!$B$9,$J$3:$XFD$3,)+2)),\"\",IFERROR(INDEX($J$6:$XFD$85,C80,MATCH('Anrechnung erbrachter Leistung'!$B$9,$J$3:$XFD$3,)+2),\"\")),\"\")","v":""},null,null,75]
[null,null,76,{"$f":"IFERROR(IF(INDEX($J$6:$XFD$85,C81,MATCH('Anrechnung erbrachter Leistung'!$B$9,$J$3:$XFD$3,)+1)=0,\"\",IFERROR(INDEX($J$6:$XFD$85,C81,MATCH('Anrechnung erbrachter Leistung'!$B$9,$J$3:$XFD$3,)+1),\"\")),\"\")","v":""},{"$f":"IFERROR(IF(INDEX($J$6:$XFD$85,C81,MATCH('Anrechnung erbrachter Leistung'!$B$9,$J$3:$XFD$3,)+0)=0,\"\",IFERROR(INDEX($J$6:$XFD$85,C81,MATCH('Anrechnung erbrachter Leistung'!$B$9,$J$3:$XFD$3,)+0),\"\")),\"\")","v":""},{"$f":"IFERROR(IF(ISBLANK(INDEX($J$6:$XFD$85,C81,MATCH('Anrechnung erbrachter Leistung'!$B$9,$J$3:$XFD$3,)+2)),\"\",IFERROR(INDEX($J$6:$XFD$85,C81,MATCH('Anrechnung erbrachter Leistung'!$B$9,$J$3:$XFD$3,)+2),\"\")),\"\")","v":""},null,null,76]
[null,null,77,{"$f":"IFERROR(IF(INDEX($J$6:$XFD$85,C82,MATCH('Anrechnung erbrachter Leistung'!$B$9,$J$3:$XFD$3,)+1)=0,\"\",IFERROR(INDEX($J$6:$XFD$85,C82,MATCH('Anrechnung erbrachter Leistung'!$B$9,$J$3:$XFD$3,)+1),\"\")),\"\")","v":""},{"$f":"IFERROR(IF(INDEX($J$6:$XFD$85,C82,MATCH('Anrechnung erbrachter Leistung'!$B$9,$J$3:$XFD$3,)+0)=0,\"\",IFERROR(INDEX($J$6:$XFD$85,C82,MATCH('Anrechnung erbrachter Leistung'!$B$9,$J$3:$XFD$3,)+0),\"\")),\"\")","v":""},{"$f":"IFERROR(IF(ISBLANK(INDEX($J$6:$XFD$85,C82,MATCH('Anrechnung erbrachter Leistung'!$B$9,$J$3:$XFD$3,)+2)),\"\",IFERROR(INDEX($J$6:$XFD$85,C82,MATCH('Anrechnung erbrachter Leistung'!$B$9,$J$3:$XFD$3,)+2),\"\")),\"\")","v":""},null,null,77]
[null,null,78,{"$f":"IFERROR(IF(INDEX($J$6:$XFD$85,C83,MATCH('Anrechnung erbrachter Leistung'!$B$9,$J$3:$XFD$3,)+1)=0,\"\",IFERROR(INDEX($J$6:$XFD$85,C83,MATCH('Anrechnung erbrachter Leistung'!$B$9,$J$3:$XFD$3,)+1),\"\")),\"\")","v":""},{"$f":"IFERROR(IF(INDEX($J$6:$XFD$85,C83,MATCH('Anrechnung erbrachter Leistung'!$B$9,$J$3:$XFD$3,)+0)=0,\"\",IFERROR(INDEX($J$6:$XFD$85,C83,MATCH('Anrechnung erbrachter Leistung'!$B$9,$J$3:$XFD$3,)+0),\"\")),\"\")","v":""},{"$f":"IFERROR(IF(ISBLANK(INDEX($J$6:$XFD$85,C83,MATCH('Anrechnung erbrachter Leistung'!$B$9,$J$3:$XFD$3,)+2)),\"\",IFERROR(INDEX($J$6:$XFD$85,C83,MATCH('Anrechnung erbrachter Leistung'!$B$9,$J$3:$XFD$3,)+2),\"\")),\"\")","v":""},null,null,78]
[null,null,79,{"$f":"IFERROR(IF(INDEX($J$6:$XFD$85,C84,MATCH('Anrechnung erbrachter Leistung'!$B$9,$J$3:$XFD$3,)+1)=0,\"\",IFERROR(INDEX($J$6:$XFD$85,C84,MATCH('Anrechnung erbrachter Leistung'!$B$9,$J$3:$XFD$3,)+1),\"\")),\"\")","v":""},{"$f":"IFERROR(IF(INDEX($J$6:$XFD$85,C84,MATCH('Anrechnung erbrachter Leistung'!$B$9,$J$3:$XFD$3,)+0)=0,\"\",IFERROR(INDEX($J$6:$XFD$85,C84,MATCH('Anrechnung erbrachter Leistung'!$B$9,$J$3:$XFD$3,)+0),\"\")),\"\")","v":""},{"$f":"IFERROR(IF(ISBLANK(INDEX($J$6:$XFD$85,C84,MATCH('Anrechnung erbrachter Leistung'!$B$9,$J$3:$XFD$3,)+2)),\"\",IFERROR(INDEX($J$6:$XFD$85,C84,MATCH('Anrechnung erbrachter Leistung'!$B$9,$J$3:$XFD$3,)+2),\"\")),\"\")","v":""},null,null,79]
[null,null,80,{"$f":"IFERROR(IF(INDEX($J$6:$XFD$85,C85,MATCH('Anrechnung erbrachter Leistung'!$B$9,$J$3:$XFD$3,)+1)=0,\"\",IFERROR(INDEX($J$6:$XFD$85,C85,MATCH('Anrechnung erbrachter Leistung'!$B$9,$J$3:$XFD$3,)+1),\"\")),\"\")","v":""},{"$f":"IFERROR(IF(INDEX($J$6:$XFD$85,C85,MATCH('Anrechnung erbrachter Leistung'!$B$9,$J$3:$XFD$3,)+0)=0,\"\",IFERROR(INDEX($J$6:$XFD$85,C85,MATCH('Anrechnung erbrachter Leistung'!$B$9,$J$3:$XFD$3,)+0),\"\")),\"\")","v":""},{"$f":"IFERROR(IF(ISBLANK(INDEX($J$6:$XFD$85,C85,MATCH('Anrechnung erbrachter Leistung'!$B$9,$J$3:$XFD$3,)+2)),\"\",IFERROR(INDEX($J$6:$XFD$85,C85,MATCH('Anrechnung erbrachter Leistung'!$B$9,$J$3:$XFD$3,)+2),\"\")),\"\")","v":""},null,null,80]

{"sheet":"Begründung","index":2,"n_rows":23,"n_cols":17,"rows_kept":23,"cut":false,"hidden":true,"merged":[[22,1,25,14],[2,1,2,14],[3,1,3,14],[4,1,6,1],[4,2,6,14],[7,1,9,1],[7,2,9,14],[19,1,21,1],[19,2,21,14],[10,1,12,1],[10,2,12,14],[13,1,15,1],[13,2,15,14],[16,1,18,1],[16,2,18,14]]}
[]
[null,"Nur vom Prüfungsamt auszufüllen!"]
[null,"Begründung/Bemerkung zu",null,null,null,null,null,null,null,null,null,null,null,null,null,null,{"$f":"IFERROR(VLOOKUP(P3,Studiengänge!$D$5:$F$32,3),\"\")","v":""}]
[null,"Prüfungsnr./ Modul",null,null,null,null,null,null,null,null,null,null,null,null,null,null,{"$f":"IFERROR(VLOOKUP(P4,Studiengänge!$D$5:$F$32,3),\"\")","v":""}]
[null,{"$f":"IFERROR(VLOOKUP(#REF!,Studiengänge!$D$6:$F$85,2,0),\"\")","v":""},{"$f":"IFERROR(VLOOKUP(#REF!,Studiengänge!$D$6:$F$85,3,0),\"\")","v":""},null,null,null,null,null,null,null,null,null,null,null,null,null,{"$f":"IFERROR(VLOOKUP(P5,Studiengänge!$D$5:$F$32,3),\"\")","v":""}]
[null,null,null,null,null,null,null,null,null,null,null,null,null,null,null,null,{"$f":"IFERROR(VLOOKUP(P6,Studiengänge!$D$5:$F$32,3),\"\")","v":""}]
[null,null,null,null,null,null,null,null,null,null,null,null,null,null,null,null,{"$f":"IFERROR(VLOOKUP(P7,Studiengänge!$D$5:$F$32,3),\"\")","v":""}]
[null,{"$f":"IFERROR(VLOOKUP(#REF!,Studiengänge!$D$6:$F$85,2,0),\"\")","v":""},{"$f":"IFERROR(VLOOKUP(#REF!,Studiengänge!$D$6:$F$85,3,0),\"\")","v":""},null,null,null,null,null,null,null,null,null,null,null,null,null,{"$f":"IFERROR(VLOOKUP(P8,Studiengänge!$D$5:$F$32,3),\"\")","v":""}]
[null,null,null,null,null,null,null,null,null,null,null,null,null,null,null,null,{"$f":"IFERROR(VLOOKUP(P9,Studiengänge!$D$5:$F$32,3),\"\")","v":""}]
[null,null,null,null,null,null,null,null,null,null,null,null,null,null,null,null,{"$f":"IFERROR(VLOOKUP(P10,Studiengänge!$D$5:$F$32,3),\"\")","v":""}]
[null,{"$f":"IFERROR(VLOOKUP(#REF!,Studiengänge!$D$6:$F$85,2,0),\"\")","v":""},{"$f":"IFERROR(VLOOKUP(#REF!,Studiengänge!$D$6:$F$85,3,0),\"\")","v":""}]
[]
[]
[null,{"$f":"IFERROR(VLOOKUP(#REF!,Studiengänge!$D$6:$F$85,2,0),\"\")","v":""},{"$f":"IFERROR(VLOOKUP(#REF!,Studiengänge!$D$6:$F$85,3,0),\"\")","v":""}]
[]
[]
[null,{"$f":"IFERROR(VLOOKUP(#REF!,Studiengänge!$D$6:$F$85,2,0),\"\")","v":""},{"$f":"IFERROR(VLOOKUP(#REF!,Studiengänge!$D$6:$F$85,3,0),\"\")","v":""}]
[]
[]
[null,{"$f":"IFERROR(VLOOKUP(#REF!,Studiengänge!$D$6:$F$85,2,0),\"\")","v":""},{"$f":"IFERROR(VLOOKUP(#REF!,Studiengänge!$D$6:$F$85,3,0),\"\")","v":""}]
[]
[]
[null,"Rechtsbehelfsbelehrung:\nGegen diese Entscheidung kann innerhalb eines Monats nach Bekanntgabe Widerspruch erhoben werden. Der Widerspruch ist bei der \nFH Münster, Hüfferstraße 27, 48149 Münster schriftlich oder zur Niederschrift einzulegen. Falls die Frist durch das Verschulden eines Bevollmächtigten versäumt werden sollte, würde dessen Verschulden Ihnen zugerechnet werden."]